Body Name,Body,Service Division,Expense Type,Date Paid,Transaction Ref,Invoice Amount,Supplier Name
South Holland District Council,http://statistics.data.gov.uk/id/local-authority/32UF,AD Housing,Grants and Contributions to Outside Bodies - No Service Received,11/10/2022,30020011,620.2,Smart Cabs Spalding
South Holland District Council,http://statistics.data.gov.uk/id/local-authority/32UF,AD Housing,Other Miscellaneous Expenses,04/10/2022,30020835,"32,996.29",Broadgate Builders (Spalding) Ltd
South Holland District Council,http://statistics.data.gov.uk/id/local-authority/32UF,AD Housing,Other Miscellaneous Expenses,04/10/2022,30020836,"11,208.78",Broadgate Homes Ltd
South Holland District Council,http://statistics.data.gov.uk/id/local-authority/32UF,AD Housing,Other Miscellaneous Expenses,04/10/2022,30020838,"14,111.40",Broadgate Homes Ltd
South Holland District Council,http://statistics.data.gov.uk/id/local-authority/32UF,AD Housing,Other Miscellaneous Expenses,04/10/2022,30020839,"18,742.36",Broadgate Builders (Spalding) Ltd
South Holland District Council,http://statistics.data.gov.uk/id/local-authority/32UF,AD Housing,Other Miscellaneous Expenses,04/10/2022,30020840,"10,507.02",Broadgate Homes Ltd
South Holland District Council,http://statistics.data.gov.uk/id/local-authority/32UF,AD Housing,Professional and Contractors Fees,11/10/2022,30020912,"1,524.00",Capsticks Solicitors LLP
South Holland District Council,http://statistics.data.gov.uk/id/local-authority/32UF,AD Housing,Professional and Contractors Fees,25/10/2022,30021027,"1,520.00",Capsticks Solicitors LLP
South Holland District Council,http://statistics.data.gov.uk/id/local-authority/32UF,AD Housing HRA,Agency Staff,11/10/2022,30020428,"1,092.77",James Andrew
South Holland District Council,http://statistics.data.gov.uk/id/local-authority/32UF,AD Housing HRA,Agency Staff,11/10/2022,30020777,"1,107.62",James Andrew
South Holland District Council,http://statistics.data.gov.uk/id/local-authority/32UF,AD Housing HRA,Agency Staff,11/10/2022,30021193,831.39,James Andrew
South Holland District Council,http://statistics.data.gov.uk/id/local-authority/32UF,AD Housing HRA,Agency Staff,11/10/2022,30021319,"1,083.32",James Andrew
South Holland District Council,http://statistics.data.gov.uk/id/local-authority/32UF,AD Housing HRA,Agency Staff,18/10/2022,30021521,462.84,Integrity Plus Ltd
South Holland District Council,http://statistics.data.gov.uk/id/local-authority/32UF,AD Housing HRA,Agency Staff,20/10/2022,30021593,"1,140.47",James Andrew
South Holland District Council,http://statistics.data.gov.uk/id/local-authority/32UF,AD Housing HRA,Agency Staff,25/10/2022,30021715,510.72,Integrity Plus Ltd
South Holland District Council,http://statistics.data.gov.uk/id/local-authority/32UF,AD Housing HRA,Agency Staff,25/10/2022,30021900,812.49,James Andrew
South Holland District Council,http://statistics.data.gov.uk/id/local-authority/32UF,AD Housing HRA,Agency Staff,27/10/2022,30021977,502.74,Integrity Plus Ltd
South Holland District Council,http://statistics.data.gov.uk/id/local-authority/32UF,AD Housing HRA,Asbestos Works HRA,13/10/2022,30020843,"4,000.00",Rilmac Insulation Ltd
South Holland District Council,http://statistics.data.gov.uk/id/local-authority/32UF,AD Housing HRA,Bed and Breakfast Accommodation (Homelessness Service),06/10/2022,30019339,641.67,The Mansion House Hotel
South Holland District Council,http://statistics.data.gov.uk/id/local-authority/32UF,AD Housing HRA,Bed and Breakfast Accommodation (Homelessness Service),06/10/2022,30019345,712.5,The Mansion House Hotel
South Holland District Council,http://statistics.data.gov.uk/id/local-authority/32UF,AD Housing HRA,Buildings Maintenance - Responsive,06/10/2022,30020406,619.89,M-Fire Ltd
South Holland District Council,http://statistics.data.gov.uk/id/local-authority/32UF,AD Housing HRA,Buildings Maintenance - Responsive,13/10/2022,30020848,"1,600.00",Boors Ltd
South Holland District Council,http://statistics.data.gov.uk/id/local-authority/32UF,AD Housing HRA,Buildings Maintenance - Responsive,06/10/2022,30020964,585,"""personal information redacted"""
South Holland District Council,http://statistics.data.gov.uk/id/local-authority/32UF,AD Housing HRA,Buildings Maintenance - Responsive,06/10/2022,30020967,898,"""personal information redacted"""
South Holland District Council,http://statistics.data.gov.uk/id/local-authority/32UF,AD Housing HRA,Buildings Maintenance - Responsive,06/10/2022,30020968,"1,995.00","""personal information redacted"""
South Holland District Council,http://statistics.data.gov.uk/id/local-authority/32UF,AD Housing HRA,Buildings Maintenance - Responsive,06/10/2022,30020976,"1,135.00",Wrights and Holbeach Asphalt Ltd
South Holland District Council,http://statistics.data.gov.uk/id/local-authority/32UF,AD Housing HRA,Buildings Maintenance - Responsive,06/10/2022,30020977,"1,780.00","""personal information redacted"""
South Holland District Council,http://statistics.data.gov.uk/id/local-authority/32UF,AD Housing HRA,Buildings Maintenance - Responsive,06/10/2022,30020984,"4,609.00",M and R Glass and Glazing Ltd
South Holland District Council,http://statistics.data.gov.uk/id/local-authority/32UF,AD Housing HRA,Buildings Maintenance - Responsive,01/11/2022,30021341,827.41,Aaron Services Ltd
South Holland District Council,http://statistics.data.gov.uk/id/local-authority/32UF,AD Housing HRA,Buildings Maintenance - Responsive,25/10/2022,30021368,909,C G Godfrey Ltd
South Holland District Council,http://statistics.data.gov.uk/id/local-authority/32UF,AD Housing HRA,Buildings Maintenance - Responsive,18/10/2022,30021369,"1,612.66",C G Godfrey Ltd
South Holland District Council,http://statistics.data.gov.uk/id/local-authority/32UF,AD Housing HRA,Buildings Maintenance - Responsive,18/10/2022,30021617,"3,405.00",M and R Glass and Glazing Ltd
South Holland District Council,http://statistics.data.gov.uk/id/local-authority/32UF,AD Housing HRA,Buildings Maintenance - Responsive,25/10/2022,30021618,"1,653.00",M and R Glass and Glazing Ltd
South Holland District Council,http://statistics.data.gov.uk/id/local-authority/32UF,AD Housing HRA,Buildings Maintenance - Responsive,25/10/2022,30021687,"1,870.00","""personal information redacted"""
South Holland District Council,http://statistics.data.gov.uk/id/local-authority/32UF,AD Housing HRA,Buildings Maintenance - Responsive,25/10/2022,30021688,587,"""personal information redacted"""
South Holland District Council,http://statistics.data.gov.uk/id/local-authority/32UF,AD Housing HRA,Buildings Maintenance - Responsive,01/11/2022,30022193,585,Boors Ltd
South Holland District Council,http://statistics.data.gov.uk/id/local-authority/32UF,AD Housing HRA,Buildings Maintenance - Responsive,01/11/2022,30022194,585,Boors Ltd
South Holland District Council,http://statistics.data.gov.uk/id/local-authority/32UF,AD Housing HRA,Cleaning Contract,13/10/2022,30020867,435,aAFD services Ltd
South Holland District Council,http://statistics.data.gov.uk/id/local-authority/32UF,AD Housing HRA,Cleaning Contract,18/10/2022,30020898,465,aAFD services Ltd
South Holland District Council,http://statistics.data.gov.uk/id/local-authority/32UF,AD Housing HRA,Cleaning Contract,25/10/2022,30021430,609.97,Veolia Es UK Ltd
South Holland District Council,http://statistics.data.gov.uk/id/local-authority/32UF,AD Housing HRA,Cleaning Contract,03/11/2022,30021447,435,aAFD services Ltd
South Holland District Council,http://statistics.data.gov.uk/id/local-authority/32UF,AD Housing HRA,Cleaning Contract,10/11/2022,30021632,645,aAFD services Ltd
South Holland District Council,http://statistics.data.gov.uk/id/local-authority/32UF,AD Housing HRA,Clothing Uniforms and Laundry,08/11/2022,30021714,"2,296.69",Seal Select Products Ltd
South Holland District Council,http://statistics.data.gov.uk/id/local-authority/32UF,AD Housing HRA,Computer Software Purchase,13/10/2022,30020767,"3,000.00",NEC Software Solutions UK Ltd
South Holland District Council,http://statistics.data.gov.uk/id/local-authority/32UF,AD Housing HRA,Drain Repairs,01/11/2022,30021239,"2,660.00",Dalrod Drainage Solutions
South Holland District Council,http://statistics.data.gov.uk/id/local-authority/32UF,AD Housing HRA,Drain Repairs,08/11/2022,30021600,"2,565.00",Dalrod Drainage Solutions
South Holland District Council,http://statistics.data.gov.uk/id/local-authority/32UF,AD Housing HRA,Drain Repairs,08/11/2022,30021602,"5,498.00",Dalrod Drainage Solutions
South Holland District Council,http://statistics.data.gov.uk/id/local-authority/32UF,AD Housing HRA,Electrical Upgrade,06/10/2022,30020849,"4,178.00",McIntyre Compliance Services
South Holland District Council,http://statistics.data.gov.uk/id/local-authority/32UF,AD Housing HRA,Electrical Upgrade,20/10/2022,30021468,"7,735.00",McIntyre Compliance Services
South Holland District Council,http://statistics.data.gov.uk/id/local-authority/32UF,AD Housing HRA,Electricity,06/10/2022,30020612,561.42,Total Energies
South Holland District Council,http://statistics.data.gov.uk/id/local-authority/32UF,AD Housing HRA,External Painting Repairs,10/11/2022,30021705,"21,176.12",Mitie Property Services UK Ltd
South Holland District Council,http://statistics.data.gov.uk/id/local-authority/32UF,AD Housing HRA,Fuel and Oil,06/10/2022,30020934,87.8,C H Jones Ltd
South Holland District Council,http://statistics.data.gov.uk/id/local-authority/32UF,AD Housing HRA,Fuel and Oil,18/10/2022,30021435,"1,016.31",C H Jones Ltd
South Holland District Council,http://statistics.data.gov.uk/id/local-authority/32UF,AD Housing HRA,Fuel and Oil,27/10/2022,30021903,"1,012.62",C H Jones Ltd
South Holland District Council,http://statistics.data.gov.uk/id/local-authority/32UF,AD Housing HRA,Fuel and Oil,27/10/2022,30021947,"1,178.66",C H Jones Ltd
South Holland District Council,http://statistics.data.gov.uk/id/local-authority/32UF,AD Housing HRA,Furniture and Equipment,06/10/2022,30019999,992.25,Stannah
South Holland District Council,http://statistics.data.gov.uk/id/local-authority/32UF,AD Housing HRA,Furniture and Equipment,06/10/2022,30020000,832.68,Stannah
South Holland District Council,http://statistics.data.gov.uk/id/local-authority/32UF,AD Housing HRA,Furniture and Equipment,25/10/2022,30021148,"12,440.08",Tunstall Healthcare UK Ltd
South Holland District Council,http://statistics.data.gov.uk/id/local-authority/32UF,AD Housing HRA,Furniture and Equipment,25/10/2022,30021149,451.95,Tunstall Healthcare UK Ltd
South Holland District Council,http://statistics.data.gov.uk/id/local-authority/32UF,AD Housing HRA,Gas Repairs,01/11/2022,30021327,"2,167.20",Aaron Services Ltd
South Holland District Council,http://statistics.data.gov.uk/id/local-authority/32UF,AD Housing HRA,Gas Repairs,01/11/2022,30021337,"12,187.06",Aaron Services Ltd
South Holland District Council,http://statistics.data.gov.uk/id/local-authority/32UF,AD Housing HRA,Gas Servicing,01/11/2022,30021328,"24,291.29",Aaron Services Ltd
South Holland District Council,http://statistics.data.gov.uk/id/local-authority/32UF,AD Housing HRA,Gas Servicing,01/11/2022,30021334,"1,608.46",Aaron Services Ltd
South Holland District Council,http://statistics.data.gov.uk/id/local-authority/32UF,AD Housing HRA,Grants and Contributions to Outside Bodies - No Service Received,18/10/2022,30021441,460,Forceshift Contracting Ltd
South Holland District Council,http://statistics.data.gov.uk/id/local-authority/32UF,AD Housing HRA,Grants and Contributions to Outside Bodies - No Service Received,25/10/2022,30021919,"5,779.50",Citizens Advice South Lincolnshire
South Holland District Council,http://statistics.data.gov.uk/id/local-authority/32UF,AD Housing HRA,Internet Broadband Payments,11/10/2022,30019340,81.99,Multidata
South Holland District Council,http://statistics.data.gov.uk/id/local-authority/32UF,AD Housing HRA,Internet Broadband Payments,11/10/2022,30019341,81.99,Multidata
South Holland District Council,http://statistics.data.gov.uk/id/local-authority/32UF,AD Housing HRA,Legal Fees,25/10/2022,30021607,"2,021.00",Capsticks Solicitors LLP
South Holland District Council,http://statistics.data.gov.uk/id/local-authority/32UF,AD Housing HRA,Legal Fees,18/10/2022,30021608,535,Capsticks Solicitors LLP
South Holland District Council,http://statistics.data.gov.uk/id/local-authority/32UF,AD Housing HRA,Maintenance of Footpaths and Roadways,11/10/2022,30021104,"19,162.32",C G Godfrey Ltd
South Holland District Council,http://statistics.data.gov.uk/id/local-authority/32UF,AD Housing HRA,Maintenance of Footpaths and Roadways,27/10/2022,30021418,"1,101.49",C G Godfrey Ltd
South Holland District Council,http://statistics.data.gov.uk/id/local-authority/32UF,AD Housing HRA,Materials and Consumables,18/10/2022,30021393,521.84,EPH Supplies Wholesale Ltd
South Holland District Council,http://statistics.data.gov.uk/id/local-authority/32UF,AD Housing HRA,Materials and Consumables,18/10/2022,30021423,757.95,Brian Ayres Roofing Supplies Ltd
South Holland District Council,http://statistics.data.gov.uk/id/local-authority/32UF,AD Housing HRA,Materials and Consumables,18/10/2022,30021538,471.77,Huws Gray Buildbase
South Holland District Council,http://statistics.data.gov.uk/id/local-authority/32UF,AD Housing HRA,Materials and Consumables,20/10/2022,30021597,427.33,EPH Supplies Wholesale Ltd
South Holland District Council,http://statistics.data.gov.uk/id/local-authority/32UF,AD Housing HRA,Materials and Consumables,01/11/2022,30021729,456.01,Saint Gobain Building Distribution
South Holland District Council,http://statistics.data.gov.uk/id/local-authority/32UF,AD Housing HRA,Other Miscellaneous Expenses,04/10/2022,30020855,"1,949.00",Bright Spark Studios Ltd
South Holland District Council,http://statistics.data.gov.uk/id/local-authority/32UF,AD Housing HRA,Postages,06/10/2022,30020971,"1,252.00",Welland Print Limited
South Holland District Council,http://statistics.data.gov.uk/id/local-authority/32UF,AD Housing HRA,Professional and Contractors Fees,25/10/2022,30021187,"2,125.00",NPS Peterborough Ltd
South Holland District Council,http://statistics.data.gov.uk/id/local-authority/32UF,AD Housing HRA,Professional and Contractors Fees,27/10/2022,30021212,"1,448.00",Language Line Ltd
South Holland District Council,http://statistics.data.gov.uk/id/local-authority/32UF,AD Housing HRA,Professional and Contractors Fees,25/10/2022,30021213,"1,335.00",Environtec Limited
South Holland District Council,http://statistics.data.gov.uk/id/local-authority/32UF,AD Housing HRA,Professional and Contractors Fees,08/11/2022,30021469,"1,410.00",Calvert Brain & Fraulo Ltd
South Holland District Council,http://statistics.data.gov.uk/id/local-authority/32UF,AD Housing HRA,Professional and Contractors Fees,15/11/2022,30021767,900,Calvert Brain & Fraulo Ltd
South Holland District Council,http://statistics.data.gov.uk/id/local-authority/32UF,AD Housing HRA,Professional and Contractors Fees,15/11/2022,30021860,770,Eve Alexander Ltd
South Holland District Council,http://statistics.data.gov.uk/id/local-authority/32UF,AD Housing HRA,Purchase of Hardware,06/10/2022,30020346,"26,615.58",Softcat Plc
South Holland District Council,http://statistics.data.gov.uk/id/local-authority/32UF,AD Housing HRA,Roof Repairs,06/10/2022,30020949,910,Kev Forman Roofing
South Holland District Council,http://statistics.data.gov.uk/id/local-authority/32UF,AD Housing HRA,Roof Repairs,06/10/2022,30020986,840,Kev Forman Roofing
South Holland District Council,http://statistics.data.gov.uk/id/local-authority/32UF,AD Housing HRA,Roof Repairs,06/10/2022,30020987,"1,585.00",Kev Forman Roofing
South Holland District Council,http://statistics.data.gov.uk/id/local-authority/32UF,AD Housing HRA,Roof Repairs,06/10/2022,30020988,740,Kev Forman Roofing
South Holland District Council,http://statistics.data.gov.uk/id/local-authority/32UF,AD Housing HRA,Roof Repairs,18/10/2022,30021622,470,Kev Forman Roofing
South Holland District Council,http://statistics.data.gov.uk/id/local-authority/32UF,AD Housing HRA,Roof Repairs,25/10/2022,30021638,470,Kev Forman Roofing
South Holland District Council,http://statistics.data.gov.uk/id/local-authority/32UF,AD Housing HRA,Roof Repairs,20/10/2022,30021640,"1,290.00",Kev Forman Roofing
South Holland District Council,http://statistics.data.gov.uk/id/local-authority/32UF,AD Housing HRA,Roof Repairs,25/10/2022,30021690,740,Kev Forman Roofing
South Holland District Council,http://statistics.data.gov.uk/id/local-authority/32UF,AD Housing HRA,Sewerage Treatment Works,18/10/2022,30021433,750.53,C G Godfrey Ltd
South Holland District Council,http://statistics.data.gov.uk/id/local-authority/32UF,AD Housing HRA,Sewerage Treatment Works,27/10/2022,30021976,"25,919.13",C G Godfrey Ltd
South Holland District Council,http://statistics.data.gov.uk/id/local-authority/32UF,AD Housing HRA,Solid Fuel Servicing,01/11/2022,30021331,714.29,Aaron Services Ltd
South Holland District Council,http://statistics.data.gov.uk/id/local-authority/32UF,AD Housing HRA,Staff Training Expenses (Non-Payroll),27/10/2022,30021219,958,Cambridge Safety
South Holland District Council,http://statistics.data.gov.uk/id/local-authority/32UF,AD Housing HRA,Subscriptions to Organisations and Other Bodies,04/10/2022,30020047,"2,562.08",Aaron Services Ltd
South Holland District Council,http://statistics.data.gov.uk/id/local-authority/32UF,AD Housing HRA,Subscriptions to Organisations and Other Bodies,04/10/2022,30020156,"1,275.00",Northern Housing Consortium Ltd
South Holland District Council,http://statistics.data.gov.uk/id/local-authority/32UF,AD Housing HRA,Subscriptions to Organisations and Other Bodies,27/10/2022,30021975,"1,344.00",Skyguard Ltd
South Holland District Council,http://statistics.data.gov.uk/id/local-authority/32UF,AD Housing HRA,Void Decoration,13/10/2022,30019799,540,aAFD services Ltd
South Holland District Council,http://statistics.data.gov.uk/id/local-authority/32UF,AD Housing HRA,Void Decoration,25/10/2022,30021794,500.1,Tonwood Home Hardware Holbeach
South Holland District Council,http://statistics.data.gov.uk/id/local-authority/32UF,AD Housing HRA,Void Decoration,01/11/2022,30022190,"3,570.00",Boors Ltd
South Holland District Council,http://statistics.data.gov.uk/id/local-authority/32UF,AD Housing HRA,Void Decoration,01/11/2022,30022192,"2,450.00",Boors Ltd
South Holland District Council,http://statistics.data.gov.uk/id/local-authority/32UF,AD Housing HRA,Void Repairs,13/10/2022,30020846,585,Boors Ltd
South Holland District Council,http://statistics.data.gov.uk/id/local-authority/32UF,AD Housing HRA,Void Repairs,25/10/2022,30021685,"1,450.00","""personal information redacted"""
South Holland District Council,http://statistics.data.gov.uk/id/local-authority/32UF,AD Housing HRA,Void Repairs,01/11/2022,30022191,585,Boors Ltd
South Holland District Council,http://statistics.data.gov.uk/id/local-authority/32UF,AD Housing HRA,Void Repairs,01/11/2022,30022214,"6,330.00",Healthguard Limited
South Holland District Council,http://statistics.data.gov.uk/id/local-authority/32UF,AD Housing HRA,Water and Sewerage Charges,27/10/2022,30022038,625.78,Wave
South Holland District Council,http://statistics.data.gov.uk/id/local-authority/32UF,AD Housing HRA,Works to Buildings (Main Contractor),04/10/2022,30020334,"41,800.78",Aaron Services Ltd
South Holland District Council,http://statistics.data.gov.uk/id/local-authority/32UF,AD Housing HRA,Works to Buildings (Main Contractor),04/10/2022,30020344,847,C G Godfrey Ltd
South Holland District Council,http://statistics.data.gov.uk/id/local-authority/32UF,AD Housing HRA,Works to Buildings (Main Contractor),04/10/2022,30020345,"1,001.00",C G Godfrey Ltd
South Holland District Council,http://statistics.data.gov.uk/id/local-authority/32UF,AD Housing HRA,Works to Buildings (Main Contractor),04/10/2022,30020347,631.42,C G Godfrey Ltd
South Holland District Council,http://statistics.data.gov.uk/id/local-authority/32UF,AD Housing HRA,Works to Buildings (Main Contractor),04/10/2022,30020348,423.28,C G Godfrey Ltd
South Holland District Council,http://statistics.data.gov.uk/id/local-authority/32UF,AD Housing HRA,Works to Buildings (Main Contractor),04/10/2022,30020349,"4,917.20",C G Godfrey Ltd
South Holland District Council,http://statistics.data.gov.uk/id/local-authority/32UF,AD Housing HRA,Works to Buildings (Main Contractor),01/11/2022,30020353,"98,855.34",Hodgson Sayers Ltd
South Holland District Council,http://statistics.data.gov.uk/id/local-authority/32UF,AD Housing HRA,Works to Buildings (Main Contractor),01/11/2022,30020354,"42,690.92",Hodgson Sayers Ltd
South Holland District Council,http://statistics.data.gov.uk/id/local-authority/32UF,AD Housing HRA,Works to Buildings (Main Contractor),11/10/2022,30020363,"16,813.25",Aaron Services Ltd
South Holland District Council,http://statistics.data.gov.uk/id/local-authority/32UF,AD Housing HRA,Works to Buildings (Main Contractor),04/10/2022,30020380,"2,760.00",Kev Forman Roofing
South Holland District Council,http://statistics.data.gov.uk/id/local-authority/32UF,AD Housing HRA,Works to Buildings (Main Contractor),04/10/2022,30020467,"2,016.67",Harmony Fire
South Holland District Council,http://statistics.data.gov.uk/id/local-authority/32UF,AD Housing HRA,Works to Buildings (Main Contractor),04/10/2022,30020844,"6,000.00",Boors Ltd
South Holland District Council,http://statistics.data.gov.uk/id/local-authority/32UF,AD Housing HRA,Works to Buildings (Main Contractor),04/10/2022,30020845,900,Boors Ltd
South Holland District Council,http://statistics.data.gov.uk/id/local-authority/32UF,AD Housing HRA,Works to Buildings (Main Contractor),11/10/2022,30021032,"24,958.12",D Brown Building Contractors Ltd
South Holland District Council,http://statistics.data.gov.uk/id/local-authority/32UF,AD Housing HRA,Works to Buildings (Main Contractor),11/10/2022,30021033,"73,523.00",D Brown Building Contractors Ltd
South Holland District Council,http://statistics.data.gov.uk/id/local-authority/32UF,AD Housing HRA,Works to Buildings (Main Contractor),11/10/2022,30021102,"4,119.50",C G Godfrey Ltd
South Holland District Council,http://statistics.data.gov.uk/id/local-authority/32UF,AD Housing HRA,Works to Buildings (Main Contractor),11/10/2022,30021103,"4,620.00",C G Godfrey Ltd
South Holland District Council,http://statistics.data.gov.uk/id/local-authority/32UF,AD Housing HRA,Works to Buildings (Main Contractor),11/10/2022,30021105,"3,900.00",C G Godfrey Ltd
South Holland District Council,http://statistics.data.gov.uk/id/local-authority/32UF,AD Housing HRA,Works to Buildings (Main Contractor),25/10/2022,30021265,"1,574.87",Focus Consultants 2010 LLP
South Holland District Council,http://statistics.data.gov.uk/id/local-authority/32UF,AD Housing HRA,Works to Buildings (Main Contractor),25/10/2022,30021266,"2,000.00",Focus Consultants 2010 LLP
South Holland District Council,http://statistics.data.gov.uk/id/local-authority/32UF,AD Housing HRA,Works to Buildings (Main Contractor),01/11/2022,30021329,"81,358.73",Aaron Services Ltd
South Holland District Council,http://statistics.data.gov.uk/id/local-authority/32UF,AD Housing HRA,Works to Buildings (Main Contractor),13/10/2022,30021367,"17,101.18",Princebuild Ltd
South Holland District Council,http://statistics.data.gov.uk/id/local-authority/32UF,AD Housing HRA,Works to Buildings (Main Contractor),18/10/2022,30021408,"16,115.44",D Brown Building Contractors Ltd
South Holland District Council,http://statistics.data.gov.uk/id/local-authority/32UF,AD Housing HRA,Works to Buildings (Main Contractor),18/10/2022,30021409,"21,243.93",D Brown Building Contractors Ltd
South Holland District Council,http://statistics.data.gov.uk/id/local-authority/32UF,AD Housing HRA,Works to Buildings (Main Contractor),18/10/2022,30021472,"17,121.62",McIntyre Compliance Services
South Holland District Council,http://statistics.data.gov.uk/id/local-authority/32UF,AD Housing HRA,Works to Buildings (Main Contractor),18/10/2022,30021477,"10,389.83",McIntyre Compliance Services
South Holland District Council,http://statistics.data.gov.uk/id/local-authority/32UF,AD Housing HRA,Works to Buildings (Main Contractor),25/10/2022,30021528,"4,223.45",Dolphin Mobility East Midlands Ltd
South Holland District Council,http://statistics.data.gov.uk/id/local-authority/32UF,AD Housing HRA,Works to Buildings (Main Contractor),25/10/2022,30021625,"133,886.17",Aaron Services Ltd
South Holland District Council,http://statistics.data.gov.uk/id/local-authority/32UF,AD Housing HRA,Works to Buildings (Main Contractor),20/10/2022,30021680,"26,170.48",Princebuild Ltd
South Holland District Council,http://statistics.data.gov.uk/id/local-authority/32UF,AD Housing HRA,Works to Buildings (Main Contractor),20/10/2022,30021697,960,G R Merchant Ltd
South Holland District Council,http://statistics.data.gov.uk/id/local-authority/32UF,AD Housing HRA,Works to Buildings (Main Contractor),25/10/2022,30021708,"16,115.00",Manor Roofing Ltd
South Holland District Council,http://statistics.data.gov.uk/id/local-authority/32UF,AD Housing HRA,Works to Buildings (Main Contractor),01/11/2022,30021907,"25,088.40",Aaron Services Ltd
South Holland District Council,http://statistics.data.gov.uk/id/local-authority/32UF,AD Housing HRA,Works to Buildings (Main Contractor),25/10/2022,30021929,"97,027.26",Hodgson Sayers Ltd
South Holland District Council,http://statistics.data.gov.uk/id/local-authority/32UF,AD Housing HRA,Works to Buildings (Main Contractor),25/10/2022,30021930,"25,083.15",Hodgson Sayers Ltd
South Holland District Council,http://statistics.data.gov.uk/id/local-authority/32UF,AD Housing HRA,Works to Buildings (Main Contractor),25/10/2022,30021932,"6,926.33",R G Carter Lincoln Limited
South Holland District Council,http://statistics.data.gov.uk/id/local-authority/32UF,AD Housing HRA,Works to Buildings (Main Contractor),25/10/2022,30021934,"42,590.35",Aaron Services Ltd
South Holland District Council,http://statistics.data.gov.uk/id/local-authority/32UF,AD Leisure and Culture,Professional and Contractors Fees,18/10/2022,30021384,460,Crusader Traffic Ltd
South Holland District Council,http://statistics.data.gov.uk/id/local-authority/32UF,AD Strategic Growth and Development,Grants and Contributions to Outside Bodies - No Service Received,03/10/2022,30020529,"1,278,203.64",Lincolnshire County Council
South Holland District Council,http://statistics.data.gov.uk/id/local-authority/32UF,AD Strategic Growth and Development,Grants and Contributions to Outside Bodies - No Service Received,06/10/2022,30020931,"4,745.00",South Holland Parish Voluntary Car Schem
South Holland District Council,http://statistics.data.gov.uk/id/local-authority/32UF,AD Strategic Growth and Development,Other Miscellaneous Expenses,27/10/2022,30021933,"2,000.00",Farmhouse Chicken Crafts
South Holland District Council,http://statistics.data.gov.uk/id/local-authority/32UF,AD Strategic Growth and Development,Professional Fees,04/10/2022,30020787,"3,711.85",Birketts Solicitors LLP
South Holland District Council,http://statistics.data.gov.uk/id/local-authority/32UF,AD Strategic Growth and Development,Professional Fees,25/10/2022,30021454,"1,950.00",M A Cost Consulting Ltd
South Holland District Council,http://statistics.data.gov.uk/id/local-authority/32UF,AD Strategic Growth and Development,Professional Fees,20/10/2022,30021656,790,Focus Consultants 2010 LLP
South Holland District Council,http://statistics.data.gov.uk/id/local-authority/32UF,AD Strategic Growth and Development,"Purchase of Plant, Machinery and Equipment",18/10/2022,30021470,515.8,Hughes Trade
South Holland District Council,http://statistics.data.gov.uk/id/local-authority/32UF,AD Strategic Growth and Development,"Purchase of Plant, Machinery and Equipment",18/10/2022,30021471,695.3,Hughes Trade
South Holland District Council,http://statistics.data.gov.uk/id/local-authority/32UF,AD Strategic Growth and Development,"Purchase of Plant, Machinery and Equipment",18/10/2022,30021473,670.2,Hughes Trade
South Holland District Council,http://statistics.data.gov.uk/id/local-authority/32UF,AD Strategic Growth and Development,Works to Buildings (Main Contractor),06/10/2022,30020842,"5,897.85",T M Browne Ltd
South Holland District Council,http://statistics.data.gov.uk/id/local-authority/32UF,AD Strategic Growth and Development,Works to Buildings (Main Contractor),11/10/2022,30021031,"10,879.49",D Brown Building Contractors Ltd
South Holland District Council,http://statistics.data.gov.uk/id/local-authority/32UF,AD Strategic Growth and Development,Works to Buildings (Main Contractor),27/10/2022,30021908,"14,133.15",T M Browne Ltd
South Holland District Council,http://statistics.data.gov.uk/id/local-authority/32UF,AD Strategic Growth and Development HRA,Agency Staff,13/10/2022,30020853,"2,040.00",Vivid Resourcing
South Holland District Council,http://statistics.data.gov.uk/id/local-authority/32UF,AD Strategic Growth and Development HRA,Agency Staff,11/10/2022,30021221,"2,750.00",Park Avenue Recruitment Ltd
South Holland District Council,http://statistics.data.gov.uk/id/local-authority/32UF,AD Strategic Growth and Development HRA,Agency Staff,18/10/2022,30021462,"2,750.00",Park Avenue Recruitment Ltd
South Holland District Council,http://statistics.data.gov.uk/id/local-authority/32UF,AD Strategic Growth and Development HRA,Agency Staff,01/11/2022,30021727,"2,750.00",Park Avenue Recruitment Ltd
South Holland District Council,http://statistics.data.gov.uk/id/local-authority/32UF,AD Strategic Growth and Development HRA,Agency Staff,01/11/2022,30022041,"2,475.00",Park Avenue Recruitment Ltd
South Holland District Council,http://statistics.data.gov.uk/id/local-authority/32UF,AD Strategic Growth and Development HRA,Professional and Contractors Fees,13/10/2022,30021363,653.66,Clapham and Collinge Lp Client Account
South Holland District Council,http://statistics.data.gov.uk/id/local-authority/32UF,AD Wellbeing and Community Leadership,Bed and Breakfast Accommodation (Homelessness Service),06/10/2022,30019338,"1,061.66",The Mansion House Hotel
South Holland District Council,http://statistics.data.gov.uk/id/local-authority/32UF,AD Wellbeing and Community Leadership,Bed and Breakfast Accommodation (Homelessness Service),04/10/2022,30020494,933.34,The Mansion House Hotel
South Holland District Council,http://statistics.data.gov.uk/id/local-authority/32UF,AD Wellbeing and Community Leadership,Bed and Breakfast Accommodation (Homelessness Service),04/10/2022,30020496,933.34,The Mansion House Hotel
South Holland District Council,http://statistics.data.gov.uk/id/local-authority/32UF,AD Wellbeing and Community Leadership,Bed and Breakfast Accommodation (Homelessness Service),04/10/2022,30020498,933.34,The Mansion House Hotel
South Holland District Council,http://statistics.data.gov.uk/id/local-authority/32UF,AD Wellbeing and Community Leadership,Bed and Breakfast Accommodation (Homelessness Service),04/10/2022,30020499,"1,225.00",the Anchor Inn
South Holland District Council,http://statistics.data.gov.uk/id/local-authority/32UF,AD Wellbeing and Community Leadership,Bed and Breakfast Accommodation (Homelessness Service),04/10/2022,30020500,"1,225.00",the Anchor Inn
South Holland District Council,http://statistics.data.gov.uk/id/local-authority/32UF,AD Wellbeing and Community Leadership,Bed and Breakfast Accommodation (Homelessness Service),04/10/2022,30020502,"1,225.00",the Anchor Inn
South Holland District Council,http://statistics.data.gov.uk/id/local-authority/32UF,AD Wellbeing and Community Leadership,Bed and Breakfast Accommodation (Homelessness Service),06/10/2022,30020778,"2,123.34",The Mansion House Hotel
South Holland District Council,http://statistics.data.gov.uk/id/local-authority/32UF,AD Wellbeing and Community Leadership,Bed and Breakfast Accommodation (Homelessness Service),06/12/2022,30020854,"2,730.00",Top Dog Catering Ltd
South Holland District Council,http://statistics.data.gov.uk/id/local-authority/32UF,AD Wellbeing and Community Leadership,Bed and Breakfast Accommodation (Homelessness Service),06/10/2022,30020888,"1,283.34",The Mansion House Hotel
South Holland District Council,http://statistics.data.gov.uk/id/local-authority/32UF,AD Wellbeing and Community Leadership,Bed and Breakfast Accommodation (Homelessness Service),06/10/2022,30020889,"1,108.34",The Mansion House Hotel
South Holland District Council,http://statistics.data.gov.uk/id/local-authority/32UF,AD Wellbeing and Community Leadership,Bed and Breakfast Accommodation (Homelessness Service),06/10/2022,30020890,"1,280.00",Fairfield Guest House
South Holland District Council,http://statistics.data.gov.uk/id/local-authority/32UF,AD Wellbeing and Community Leadership,Bed and Breakfast Accommodation (Homelessness Service),11/10/2022,30020891,933.34,The Mansion House Hotel
South Holland District Council,http://statistics.data.gov.uk/id/local-authority/32UF,AD Wellbeing and Community Leadership,Bed and Breakfast Accommodation (Homelessness Service),11/10/2022,30020893,933.34,The Mansion House Hotel
South Holland District Council,http://statistics.data.gov.uk/id/local-authority/32UF,AD Wellbeing and Community Leadership,Bed and Breakfast Accommodation (Homelessness Service),06/10/2022,30020904,933.34,The Mansion House Hotel
South Holland District Council,http://statistics.data.gov.uk/id/local-authority/32UF,AD Wellbeing and Community Leadership,Bed and Breakfast Accommodation (Homelessness Service),11/10/2022,30020911,"1,061.66",The Mansion House Hotel
South Holland District Council,http://statistics.data.gov.uk/id/local-authority/32UF,AD Wellbeing and Community Leadership,Bed and Breakfast Accommodation (Homelessness Service),06/10/2022,30020950,"1,225.00",the Anchor Inn
South Holland District Council,http://statistics.data.gov.uk/id/local-authority/32UF,AD Wellbeing and Community Leadership,Bed and Breakfast Accommodation (Homelessness Service),06/10/2022,30020951,"1,225.00",the Anchor Inn
South Holland District Council,http://statistics.data.gov.uk/id/local-authority/32UF,AD Wellbeing and Community Leadership,Bed and Breakfast Accommodation (Homelessness Service),06/10/2022,30020952,945,Anglia Motel
South Holland District Council,http://statistics.data.gov.uk/id/local-authority/32UF,AD Wellbeing and Community Leadership,Bed and Breakfast Accommodation (Homelessness Service),06/10/2022,30020956,945,Anglia Motel
South Holland District Council,http://statistics.data.gov.uk/id/local-authority/32UF,AD Wellbeing and Community Leadership,Bed and Breakfast Accommodation (Homelessness Service),13/10/2022,30020996,"1,330.00",The Boat House
South Holland District Council,http://statistics.data.gov.uk/id/local-authority/32UF,AD Wellbeing and Community Leadership,Bed and Breakfast Accommodation (Homelessness Service),13/10/2022,30020998,"1,330.00",The Boat House
South Holland District Council,http://statistics.data.gov.uk/id/local-authority/32UF,AD Wellbeing and Community Leadership,Bed and Breakfast Accommodation (Homelessness Service),13/10/2022,30021136,"1,085.00",Anglia Motel
South Holland District Council,http://statistics.data.gov.uk/id/local-authority/32UF,AD Wellbeing and Community Leadership,Bed and Breakfast Accommodation (Homelessness Service),13/10/2022,30021137,"1,085.00",Anglia Motel
South Holland District Council,http://statistics.data.gov.uk/id/local-authority/32UF,AD Wellbeing and Community Leadership,Bed and Breakfast Accommodation (Homelessness Service),13/10/2022,30021141,"1,085.00",Anglia Motel
South Holland District Council,http://statistics.data.gov.uk/id/local-authority/32UF,AD Wellbeing and Community Leadership,Bed and Breakfast Accommodation (Homelessness Service),13/10/2022,30021143,940,Anglia Motel
South Holland District Council,http://statistics.data.gov.uk/id/local-authority/32UF,AD Wellbeing and Community Leadership,Bed and Breakfast Accommodation (Homelessness Service),13/10/2022,30021144,"1,085.00",Anglia Motel
South Holland District Council,http://statistics.data.gov.uk/id/local-authority/32UF,AD Wellbeing and Community Leadership,Bed and Breakfast Accommodation (Homelessness Service),13/10/2022,30021188,"1,085.00",Anglia Motel
South Holland District Council,http://statistics.data.gov.uk/id/local-authority/32UF,AD Wellbeing and Community Leadership,Bed and Breakfast Accommodation (Homelessness Service),13/10/2022,30021189,"1,085.00",Anglia Motel
South Holland District Council,http://statistics.data.gov.uk/id/local-authority/32UF,AD Wellbeing and Community Leadership,Bed and Breakfast Accommodation (Homelessness Service),13/10/2022,30021201,"1,283.34",The Mansion House Hotel
South Holland District Council,http://statistics.data.gov.uk/id/local-authority/32UF,AD Wellbeing and Community Leadership,Bed and Breakfast Accommodation (Homelessness Service),13/10/2022,30021202,"1,200.00",The Mansion House Hotel
South Holland District Council,http://statistics.data.gov.uk/id/local-authority/32UF,AD Wellbeing and Community Leadership,Bed and Breakfast Accommodation (Homelessness Service),13/10/2022,30021203,933.34,The Mansion House Hotel
South Holland District Council,http://statistics.data.gov.uk/id/local-authority/32UF,AD Wellbeing and Community Leadership,Bed and Breakfast Accommodation (Homelessness Service),13/10/2022,30021204,933.34,The Mansion House Hotel
South Holland District Council,http://statistics.data.gov.uk/id/local-authority/32UF,AD Wellbeing and Community Leadership,Bed and Breakfast Accommodation (Homelessness Service),13/10/2022,30021205,"1,108.34",The Mansion House Hotel
South Holland District Council,http://statistics.data.gov.uk/id/local-authority/32UF,AD Wellbeing and Community Leadership,Bed and Breakfast Accommodation (Homelessness Service),13/10/2022,30021240,"1,408.34",Riverside Hotel
South Holland District Council,http://statistics.data.gov.uk/id/local-authority/32UF,AD Wellbeing and Community Leadership,Bed and Breakfast Accommodation (Homelessness Service),13/10/2022,30021241,"1,283.34",Riverside Hotel
South Holland District Council,http://statistics.data.gov.uk/id/local-authority/32UF,AD Wellbeing and Community Leadership,Bed and Breakfast Accommodation (Homelessness Service),13/10/2022,30021246,"1,085.00",Anglia Motel
South Holland District Council,http://statistics.data.gov.uk/id/local-authority/32UF,AD Wellbeing and Community Leadership,Bed and Breakfast Accommodation (Homelessness Service),13/10/2022,30021247,"1,085.00",Anglia Motel
South Holland District Council,http://statistics.data.gov.uk/id/local-authority/32UF,AD Wellbeing and Community Leadership,Bed and Breakfast Accommodation (Homelessness Service),11/10/2022,30021248,"1,200.00",The County Hall Hotel (Boston) Ltd
South Holland District Council,http://statistics.data.gov.uk/id/local-authority/32UF,AD Wellbeing and Community Leadership,Bed and Breakfast Accommodation (Homelessness Service),13/10/2022,30021249,"1,085.00",Anglia Motel
South Holland District Council,http://statistics.data.gov.uk/id/local-authority/32UF,AD Wellbeing and Community Leadership,Bed and Breakfast Accommodation (Homelessness Service),13/10/2022,30021251,"1,085.00",Anglia Motel
South Holland District Council,http://statistics.data.gov.uk/id/local-authority/32UF,AD Wellbeing and Community Leadership,Bed and Breakfast Accommodation (Homelessness Service),13/10/2022,30021253,"1,000.00",Anglia Motel
South Holland District Council,http://statistics.data.gov.uk/id/local-authority/32UF,AD Wellbeing and Community Leadership,Bed and Breakfast Accommodation (Homelessness Service),13/10/2022,30021254,"1,085.00",Anglia Motel
South Holland District Council,http://statistics.data.gov.uk/id/local-authority/32UF,AD Wellbeing and Community Leadership,Bed and Breakfast Accommodation (Homelessness Service),13/10/2022,30021255,"1,085.00",Anglia Motel
South Holland District Council,http://statistics.data.gov.uk/id/local-authority/32UF,AD Wellbeing and Community Leadership,Bed and Breakfast Accommodation (Homelessness Service),13/10/2022,30021256,930,Anglia Motel
South Holland District Council,http://statistics.data.gov.uk/id/local-authority/32UF,AD Wellbeing and Community Leadership,Bed and Breakfast Accommodation (Homelessness Service),13/10/2022,30021257,"1,240.00",Anglia Motel
South Holland District Council,http://statistics.data.gov.uk/id/local-authority/32UF,AD Wellbeing and Community Leadership,Bed and Breakfast Accommodation (Homelessness Service),13/10/2022,30021279,"1,330.00",The Boat House
South Holland District Council,http://statistics.data.gov.uk/id/local-authority/32UF,AD Wellbeing and Community Leadership,Bed and Breakfast Accommodation (Homelessness Service),13/10/2022,30021280,"1,330.00",The Boat House
South Holland District Council,http://statistics.data.gov.uk/id/local-authority/32UF,AD Wellbeing and Community Leadership,Bed and Breakfast Accommodation (Homelessness Service),13/10/2022,30021281,"1,330.00",The Boat House
South Holland District Council,http://statistics.data.gov.uk/id/local-authority/32UF,AD Wellbeing and Community Leadership,Bed and Breakfast Accommodation (Homelessness Service),13/10/2022,30021283,"1,470.00",The Boat House
South Holland District Council,http://statistics.data.gov.uk/id/local-authority/32UF,AD Wellbeing and Community Leadership,Bed and Breakfast Accommodation (Homelessness Service),13/10/2022,30021359,"1,108.34",The Mansion House Hotel
South Holland District Council,http://statistics.data.gov.uk/id/local-authority/32UF,AD Wellbeing and Community Leadership,Bed and Breakfast Accommodation (Homelessness Service),13/10/2022,30021360,"1,283.34",The Mansion House Hotel
South Holland District Council,http://statistics.data.gov.uk/id/local-authority/32UF,AD Wellbeing and Community Leadership,Bed and Breakfast Accommodation (Homelessness Service),13/10/2022,30021361,933.34,The Mansion House Hotel
South Holland District Council,http://statistics.data.gov.uk/id/local-authority/32UF,AD Wellbeing and Community Leadership,Bed and Breakfast Accommodation (Homelessness Service),13/10/2022,30021362,933.34,The Mansion House Hotel
South Holland District Council,http://statistics.data.gov.uk/id/local-authority/32UF,AD Wellbeing and Community Leadership,Bed and Breakfast Accommodation (Homelessness Service),18/10/2022,30021385,"1,225.00",the Anchor Inn
South Holland District Council,http://statistics.data.gov.uk/id/local-authority/32UF,AD Wellbeing and Community Leadership,Bed and Breakfast Accommodation (Homelessness Service),20/10/2022,30021456,"1,225.00",the Anchor Inn
South Holland District Council,http://statistics.data.gov.uk/id/local-authority/32UF,AD Wellbeing and Community Leadership,Bed and Breakfast Accommodation (Homelessness Service),20/10/2022,30021532,"1,283.34",The Mansion House Hotel
South Holland District Council,http://statistics.data.gov.uk/id/local-authority/32UF,AD Wellbeing and Community Leadership,Bed and Breakfast Accommodation (Homelessness Service),20/10/2022,30021533,"1,108.34",The Mansion House Hotel
South Holland District Council,http://statistics.data.gov.uk/id/local-authority/32UF,AD Wellbeing and Community Leadership,Bed and Breakfast Accommodation (Homelessness Service),20/10/2022,30021534,933.34,The Mansion House Hotel
South Holland District Council,http://statistics.data.gov.uk/id/local-authority/32UF,AD Wellbeing and Community Leadership,Bed and Breakfast Accommodation (Homelessness Service),20/10/2022,30021535,933.34,The Mansion House Hotel
South Holland District Council,http://statistics.data.gov.uk/id/local-authority/32UF,AD Wellbeing and Community Leadership,Bed and Breakfast Accommodation (Homelessness Service),20/10/2022,30021556,"2,123.34",The Mansion House Hotel
South Holland District Council,http://statistics.data.gov.uk/id/local-authority/32UF,AD Wellbeing and Community Leadership,Bed and Breakfast Accommodation (Homelessness Service),20/10/2022,30021560,"1,085.00",Anglia Motel
South Holland District Council,http://statistics.data.gov.uk/id/local-authority/32UF,AD Wellbeing and Community Leadership,Bed and Breakfast Accommodation (Homelessness Service),20/10/2022,30021629,"2,280.00",The Boat House
South Holland District Council,http://statistics.data.gov.uk/id/local-authority/32UF,AD Wellbeing and Community Leadership,Bed and Breakfast Accommodation (Homelessness Service),20/10/2022,30021630,"1,330.00",The Boat House
South Holland District Council,http://statistics.data.gov.uk/id/local-authority/32UF,AD Wellbeing and Community Leadership,Bed and Breakfast Accommodation (Homelessness Service),20/10/2022,30021636,"1,470.00",The Boat House
South Holland District Council,http://statistics.data.gov.uk/id/local-authority/32UF,AD Wellbeing and Community Leadership,Bed and Breakfast Accommodation (Homelessness Service),20/10/2022,30021649,"1,225.00",the Anchor Inn
South Holland District Council,http://statistics.data.gov.uk/id/local-authority/32UF,AD Wellbeing and Community Leadership,Bed and Breakfast Accommodation (Homelessness Service),20/10/2022,30021650,"1,266.66",The Boat House
South Holland District Council,http://statistics.data.gov.uk/id/local-authority/32UF,AD Wellbeing and Community Leadership,Bed and Breakfast Accommodation (Homelessness Service),20/10/2022,30021652,"1,470.00",The Boat House
South Holland District Council,http://statistics.data.gov.uk/id/local-authority/32UF,AD Wellbeing and Community Leadership,Bed and Breakfast Accommodation (Homelessness Service),20/10/2022,30021654,"1,470.00",The Boat House
South Holland District Council,http://statistics.data.gov.uk/id/local-authority/32UF,AD Wellbeing and Community Leadership,Bed and Breakfast Accommodation (Homelessness Service),20/10/2022,30021655,"1,470.00",The Boat House
South Holland District Council,http://statistics.data.gov.uk/id/local-authority/32UF,AD Wellbeing and Community Leadership,Bed and Breakfast Accommodation (Homelessness Service),20/10/2022,30021660,"1,085.00",Anglia Motel
South Holland District Council,http://statistics.data.gov.uk/id/local-authority/32UF,AD Wellbeing and Community Leadership,Bed and Breakfast Accommodation (Homelessness Service),20/10/2022,30021661,"1,085.00",Anglia Motel
South Holland District Council,http://statistics.data.gov.uk/id/local-authority/32UF,AD Wellbeing and Community Leadership,Bed and Breakfast Accommodation (Homelessness Service),20/10/2022,30021665,"1,085.00",Anglia Motel
South Holland District Council,http://statistics.data.gov.uk/id/local-authority/32UF,AD Wellbeing and Community Leadership,Bed and Breakfast Accommodation (Homelessness Service),20/10/2022,30021669,"1,085.00",Anglia Motel
South Holland District Council,http://statistics.data.gov.uk/id/local-authority/32UF,AD Wellbeing and Community Leadership,Bed and Breakfast Accommodation (Homelessness Service),20/10/2022,30021670,"1,085.00",Anglia Motel
South Holland District Council,http://statistics.data.gov.uk/id/local-authority/32UF,AD Wellbeing and Community Leadership,Bed and Breakfast Accommodation (Homelessness Service),25/10/2022,30021887,"1,085.00",Anglia Motel
South Holland District Council,http://statistics.data.gov.uk/id/local-authority/32UF,AD Wellbeing and Community Leadership,Bed and Breakfast Accommodation (Homelessness Service),25/10/2022,30021892,"1,085.00",Anglia Motel
South Holland District Council,http://statistics.data.gov.uk/id/local-authority/32UF,AD Wellbeing and Community Leadership,Bed and Breakfast Accommodation (Homelessness Service),25/10/2022,30021893,"1,085.00",Anglia Motel
South Holland District Council,http://statistics.data.gov.uk/id/local-authority/32UF,AD Wellbeing and Community Leadership,Bed and Breakfast Accommodation (Homelessness Service),25/10/2022,30021894,"1,085.00",Anglia Motel
South Holland District Council,http://statistics.data.gov.uk/id/local-authority/32UF,AD Wellbeing and Community Leadership,Bed and Breakfast Accommodation (Homelessness Service),25/10/2022,30021895,"1,085.00",Anglia Motel
South Holland District Council,http://statistics.data.gov.uk/id/local-authority/32UF,AD Wellbeing and Community Leadership,Bed and Breakfast Accommodation (Homelessness Service),25/10/2022,30021898,"1,100.00",Anglia Motel
South Holland District Council,http://statistics.data.gov.uk/id/local-authority/32UF,AD Wellbeing and Community Leadership,Bed and Breakfast Accommodation (Homelessness Service),25/10/2022,30021899,"1,085.00",Anglia Motel
South Holland District Council,http://statistics.data.gov.uk/id/local-authority/32UF,AD Wellbeing and Community Leadership,Grants and Contributions to Outside Bodies - No Service Received,06/10/2022,30020814,"1,344.00",Property Panda Lettings Ltd
South Holland District Council,http://statistics.data.gov.uk/id/local-authority/32UF,AD Wellbeing and Community Leadership,Grants and Contributions to Outside Bodies - No Service Received,20/10/2022,30021520,"9,674.00",Obam Domestic Lift Services Ltd
South Holland District Council,http://statistics.data.gov.uk/id/local-authority/32UF,AD Wellbeing and Community Leadership,Grants and Contributions to Outside Bodies - No Service Received,25/10/2022,30021524,"3,400.00","""personal information redacted"""
South Holland District Council,http://statistics.data.gov.uk/id/local-authority/32UF,AD Wellbeing and Community Leadership,Grants and Contributions to Outside Bodies - No Service Received,20/10/2022,30021682,"1,440.00",G R Merchant Ltd
South Holland District Council,http://statistics.data.gov.uk/id/local-authority/32UF,AD Wellbeing and Community Leadership,Grants and Contributions to Outside Bodies - No Service Received,20/10/2022,30021693,"3,072.00",Martin Greaves Building Contractor
South Holland District Council,http://statistics.data.gov.uk/id/local-authority/32UF,AD Wellbeing and Community Leadership,Grants and Contributions to Outside Bodies - No Service Received,20/10/2022,30021694,"13,660.74",R A Joinery
South Holland District Council,http://statistics.data.gov.uk/id/local-authority/32UF,AD Wellbeing and Community Leadership,Grants and Contributions to Outside Bodies - No Service Received,25/10/2022,30021695,"8,560.00",Obam Domestic Lift Services Ltd
South Holland District Council,http://statistics.data.gov.uk/id/local-authority/32UF,AD Wellbeing and Community Leadership,Grants and Contributions to Outside Bodies - No Service Received,20/10/2022,30021707,"2,130.00",Longstaff Client Account
South Holland District Council,http://statistics.data.gov.uk/id/local-authority/32UF,AD Wellbeing and Community Leadership,Grants and Contributions to Outside Bodies - No Service Received,27/10/2022,30021921,"1,900.00",Longstaff Client Account
South Holland District Council,http://statistics.data.gov.uk/id/local-authority/32UF,Asset & Property,Agency Staff,06/10/2022,30019978,552.78,Integrity Plus Ltd
South Holland District Council,http://statistics.data.gov.uk/id/local-authority/32UF,Asset & Property,Agency Staff,11/10/2022,30021009,"2,580.94",Integrity Plus Ltd
South Holland District Council,http://statistics.data.gov.uk/id/local-authority/32UF,Asset & Property,Agency Staff,11/10/2022,30021010,448.2,Integrity Plus Ltd
South Holland District Council,http://statistics.data.gov.uk/id/local-authority/32UF,Asset & Property,Agency Staff,11/10/2022,30021035,552.78,Integrity Plus Ltd
South Holland District Council,http://statistics.data.gov.uk/id/local-authority/32UF,Asset & Property,Agency Staff,11/10/2022,30021038,"2,181.58",Integrity Plus Ltd
South Holland District Council,http://statistics.data.gov.uk/id/local-authority/32UF,Asset & Property,Agency Staff,11/10/2022,30021231,552.78,Integrity Plus Ltd
South Holland District Council,http://statistics.data.gov.uk/id/local-authority/32UF,Asset & Property,Agency Staff,11/10/2022,30021232,"2,222.25",Integrity Plus Ltd
South Holland District Council,http://statistics.data.gov.uk/id/local-authority/32UF,Asset & Property,Agency Staff,25/10/2022,30021748,552.78,Integrity Plus Ltd
South Holland District Council,http://statistics.data.gov.uk/id/local-authority/32UF,Asset & Property,Agency Staff,25/10/2022,30021749,"2,181.57",Integrity Plus Ltd
South Holland District Council,http://statistics.data.gov.uk/id/local-authority/32UF,Asset & Property,Agency Staff,27/10/2022,30021983,552.78,Integrity Plus Ltd
South Holland District Council,http://statistics.data.gov.uk/id/local-authority/32UF,Asset & Property,Agency Staff,01/11/2022,30021985,"2,137.20",Integrity Plus Ltd
South Holland District Council,http://statistics.data.gov.uk/id/local-authority/32UF,Asset & Property,Commercial Vehicle Lease Payments (Less than 12 months),20/10/2022,30021766,"1,018.66",Go Plant Fleet Services
South Holland District Council,http://statistics.data.gov.uk/id/local-authority/32UF,Asset & Property,Fuel and Oil,18/10/2022,30021435,131.31,C H Jones Ltd
South Holland District Council,http://statistics.data.gov.uk/id/local-authority/32UF,Asset & Property,Fuel and Oil,27/10/2022,30021947,56.16,C H Jones Ltd
South Holland District Council,http://statistics.data.gov.uk/id/local-authority/32UF,Asset & Property,Materials and Consumables,25/10/2022,30021843,464.28,PHS Group
South Holland District Council,http://statistics.data.gov.uk/id/local-authority/32UF,Asset & Property,Professional and Contractors Fees,06/10/2022,30019990,"2,688.40",GBSG Ltd
South Holland District Council,http://statistics.data.gov.uk/id/local-authority/32UF,Asset & Property,Professional and Contractors Fees,06/10/2022,30020355,"2,600.00",Weaar
South Holland District Council,http://statistics.data.gov.uk/id/local-authority/32UF,Asset & Property,Professional and Contractors Fees,13/10/2022,30021374,"1,750.00",Weaar
South Holland District Council,http://statistics.data.gov.uk/id/local-authority/32UF,Asset & Property,Professional and Contractors Fees,18/10/2022,30021466,"2,688.40",GBSG Ltd
South Holland District Council,http://statistics.data.gov.uk/id/local-authority/32UF,Asset & Property,Professional and Contractors Fees,03/11/2022,30021594,"2,150.00",Weaar
South Holland District Council,http://statistics.data.gov.uk/id/local-authority/32UF,Asset & Property,Professional and Contractors Fees,03/11/2022,30021598,"1,500.00",Weaar
South Holland District Council,http://statistics.data.gov.uk/id/local-authority/32UF,Building Control,Buildings Maintenance - Programmed,11/10/2022,30020894,850,Stuart Taplin Plumbing and Build Maint
South Holland District Council,http://statistics.data.gov.uk/id/local-authority/32UF,Building Control,Buildings Maintenance - Programmed,10/11/2022,30021830,798.4,Main Street Signs Ltd
South Holland District Council,http://statistics.data.gov.uk/id/local-authority/32UF,Capital - Strategic Finance & Compliance,Buildings Maintenance - Programmed,04/10/2022,30020135,"28,511.00",Warics Ltd
South Holland District Council,http://statistics.data.gov.uk/id/local-authority/32UF,Capital - Strategic Finance & Compliance,Buildings Maintenance - Programmed,04/10/2022,30020350,"1,285.00",LJ Landscapes Ltd
South Holland District Council,http://statistics.data.gov.uk/id/local-authority/32UF,Capital - Strategic Finance & Compliance,Buildings Maintenance - Programmed,04/10/2022,30020379,"4,243.00",Tormax UK Ltd
South Holland District Council,http://statistics.data.gov.uk/id/local-authority/32UF,Capital - Strategic Finance & Compliance,Buildings Maintenance - Programmed,04/10/2022,30020387,"1,900.00","""personal information redacted"""
South Holland District Council,http://statistics.data.gov.uk/id/local-authority/32UF,Capital - Strategic Finance & Compliance,Buildings Maintenance - Programmed,04/10/2022,30020480,"1,040.00",Oglesby and Limb Ltd
South Holland District Council,http://statistics.data.gov.uk/id/local-authority/32UF,Capital - Strategic Finance & Compliance,Buildings Maintenance - Programmed,13/10/2022,30021273,629.4,Direct Access Supplies Ltd
South Holland District Council,http://statistics.data.gov.uk/id/local-authority/32UF,Capital - Strategic Finance & Compliance,Buildings Maintenance - Programmed,18/10/2022,30021461,"5,132.99",SMS Connection Ltd
South Holland District Council,http://statistics.data.gov.uk/id/local-authority/32UF,Capital - Strategic Finance & Compliance,Buildings Maintenance - Programmed,18/10/2022,30021567,"4,700.00","""personal information redacted"""
South Holland District Council,http://statistics.data.gov.uk/id/local-authority/32UF,Capital - Strategic Finance & Compliance,Buildings Maintenance - Programmed,10/11/2022,30021864,"6,250.00",Stone Asbestos Ltd
South Holland District Council,http://statistics.data.gov.uk/id/local-authority/32UF,Capital - Strategic Finance & Compliance,Buildings Maintenance - Programmed,27/10/2022,30021936,550,SM Painting & Decorating Ltd
South Holland District Council,http://statistics.data.gov.uk/id/local-authority/32UF,Capital - Strategic Finance & Compliance,Buildings Maintenance - Programmed,01/11/2022,30022113,895,T M Browne Ltd
South Holland District Council,http://statistics.data.gov.uk/id/local-authority/32UF,Capital - Strategic Finance & Compliance,Buildings Maintenance - Responsive,04/10/2022,30020136,"6,431.00",Warics Ltd
South Holland District Council,http://statistics.data.gov.uk/id/local-authority/32UF,Capital - Strategic Finance & Compliance,Buildings Maintenance - Responsive,04/10/2022,30020137,"1,800.00",SM Painting & Decorating Ltd
South Holland District Council,http://statistics.data.gov.uk/id/local-authority/32UF,Capital - Strategic Finance & Compliance,Buildings Maintenance - Responsive,04/10/2022,30020325,"1,190.00",Wrights and Holbeach Asphalt Ltd
South Holland District Council,http://statistics.data.gov.uk/id/local-authority/32UF,Capital - Strategic Finance & Compliance,Buildings Maintenance - Responsive,04/10/2022,30020356,"1,870.13",Ian Brown Electrical Engineers Ltd
South Holland District Council,http://statistics.data.gov.uk/id/local-authority/32UF,Capital - Strategic Finance & Compliance,Buildings Maintenance - Responsive,04/10/2022,30020366,523.2,Wrights Flooring and Carpets Ltd
South Holland District Council,http://statistics.data.gov.uk/id/local-authority/32UF,Capital - Strategic Finance & Compliance,Buildings Maintenance - Responsive,04/10/2022,30020384,"1,500.00","""personal information redacted"""
South Holland District Council,http://statistics.data.gov.uk/id/local-authority/32UF,Capital - Strategic Finance & Compliance,Buildings Maintenance - Responsive,11/10/2022,30020482,"1,380.00",T & M Agricultural Contractors Ltd
South Holland District Council,http://statistics.data.gov.uk/id/local-authority/32UF,Capital - Strategic Finance & Compliance,Buildings Maintenance - Responsive,04/10/2022,30020841,946,Mr Clever Clean Peterborough Ltd
South Holland District Council,http://statistics.data.gov.uk/id/local-authority/32UF,Capital - Strategic Finance & Compliance,Buildings Maintenance - Responsive,11/10/2022,30020850,708,T & M Agricultural Contractors Ltd
South Holland District Council,http://statistics.data.gov.uk/id/local-authority/32UF,Capital - Strategic Finance & Compliance,Buildings Maintenance - Responsive,06/10/2022,30020936,"1,645.00",Mr Clever Clean Peterborough Ltd
South Holland District Council,http://statistics.data.gov.uk/id/local-authority/32UF,Capital - Strategic Finance & Compliance,Buildings Maintenance - Responsive,11/10/2022,30021206,"1,075.00",Illuminous Consulting
South Holland District Council,http://statistics.data.gov.uk/id/local-authority/32UF,Capital - Strategic Finance & Compliance,Buildings Maintenance - Responsive,11/10/2022,30021211,724.5,JT Ward Joinery Limited
South Holland District Council,http://statistics.data.gov.uk/id/local-authority/32UF,Capital - Strategic Finance & Compliance,Buildings Maintenance - Responsive,25/10/2022,30021541,875,Oglesby and Limb Ltd
South Holland District Council,http://statistics.data.gov.uk/id/local-authority/32UF,Capital - Strategic Finance & Compliance,Buildings Maintenance - Responsive,20/10/2022,30021568,"4,960.00",Glen Farrow UK Ltd
South Holland District Council,http://statistics.data.gov.uk/id/local-authority/32UF,Capital - Strategic Finance & Compliance,Buildings Maintenance - Responsive,20/10/2022,30021605,969.96,Glen Farrow UK Ltd
South Holland District Council,http://statistics.data.gov.uk/id/local-authority/32UF,Capital - Strategic Finance & Compliance,Buildings Maintenance - Responsive,25/10/2022,30021639,"3,951.38",Glen Farrow UK Ltd
South Holland District Council,http://statistics.data.gov.uk/id/local-authority/32UF,Capital - Strategic Finance & Compliance,Buildings Maintenance - Responsive,20/10/2022,30021645,"1,449.80",Glen Farrow UK Ltd
South Holland District Council,http://statistics.data.gov.uk/id/local-authority/32UF,Capital - Strategic Finance & Compliance,Buildings Maintenance - Responsive,15/11/2022,30021756,600,Stone Asbestos Ltd
South Holland District Council,http://statistics.data.gov.uk/id/local-authority/32UF,Capital - Strategic Finance & Compliance,Buildings Maintenance - Responsive,01/11/2022,30022112,600,Glen Farrow UK Ltd
South Holland District Council,http://statistics.data.gov.uk/id/local-authority/32UF,Capital - Strategic Finance & Compliance,Buildings Maintenance - Responsive,01/11/2022,30022121,"3,336.09",T M Browne Ltd
South Holland District Council,http://statistics.data.gov.uk/id/local-authority/32UF,Capital - Strategic Finance & Compliance,Buildings Maintenance - Responsive,01/11/2022,30022122,831.6,T M Browne Ltd
South Holland District Council,http://statistics.data.gov.uk/id/local-authority/32UF,Capital - Strategic Finance & Compliance,Buildings Maintenance - Responsive,01/11/2022,30022123,598,T M Browne Ltd
South Holland District Council,http://statistics.data.gov.uk/id/local-authority/32UF,Capital - Strategic Finance & Compliance,Buildings Maintenance - Responsive,01/11/2022,30022124,"2,745.50",T M Browne Ltd
South Holland District Council,http://statistics.data.gov.uk/id/local-authority/32UF,Capital - Strategic Finance & Compliance,Electricity,04/10/2022,30020659,"3,223.73",Total Energies
South Holland District Council,http://statistics.data.gov.uk/id/local-authority/32UF,Capital - Strategic Finance & Compliance,Electricity,04/10/2022,30020662,"3,665.43",Total Energies
South Holland District Council,http://statistics.data.gov.uk/id/local-authority/32UF,Capital - Strategic Finance & Compliance,Electricity,06/10/2022,30020671,647.03,Total Energies
South Holland District Council,http://statistics.data.gov.uk/id/local-authority/32UF,Capital - Strategic Finance & Compliance,Electricity,04/10/2022,30020802,"3,195.41",Total Energies
South Holland District Council,http://statistics.data.gov.uk/id/local-authority/32UF,Capital - Strategic Finance & Compliance,Electricity,04/10/2022,30020804,"3,884.14",Total Energies
South Holland District Council,http://statistics.data.gov.uk/id/local-authority/32UF,Capital - Strategic Finance & Compliance,Electricity,06/10/2022,30020813,725.37,Total Energies
South Holland District Council,http://statistics.data.gov.uk/id/local-authority/32UF,Capital - Strategic Finance & Compliance,Electricity,01/11/2022,30022178,"3,365.64",Total Energies
South Holland District Council,http://statistics.data.gov.uk/id/local-authority/32UF,Capital - Strategic Finance & Compliance,Electricity,01/11/2022,30022180,"3,725.47",Total Energies
South Holland District Council,http://statistics.data.gov.uk/id/local-authority/32UF,Capital - Strategic Finance & Compliance,Electricity,01/11/2022,30022188,575.81,Total Energies
South Holland District Council,http://statistics.data.gov.uk/id/local-authority/32UF,Capital - Strategic Finance & Compliance,Furniture and Equipment,10/11/2022,30021679,461,E.ON Energy Solutions Ltd
South Holland District Council,http://statistics.data.gov.uk/id/local-authority/32UF,Capital - Strategic Finance & Compliance,Gas,04/10/2022,30020526,"1,103.67",Espo Gas and Electricity
South Holland District Council,http://statistics.data.gov.uk/id/local-authority/32UF,Capital - Strategic Finance & Compliance,Lincolnshire Legal Services,18/10/2022,30021401,"2,689.50",Lincolnshire County Council
South Holland District Council,http://statistics.data.gov.uk/id/local-authority/32UF,Capital - Strategic Finance & Compliance,Professional and Contractors Fees,25/10/2022,30021145,"2,000.00",NPS Peterborough Ltd
South Holland District Council,http://statistics.data.gov.uk/id/local-authority/32UF,Capital - Strategic Finance & Compliance,Professional and Contractors Fees,27/10/2022,30021942,"1,370.00",Longstaff Client Account
South Holland District Council,http://statistics.data.gov.uk/id/local-authority/32UF,Capital - Strategic Finance & Compliance,"Purchase of Plant, Machinery and Equipment",04/10/2022,30019961,"1,805.66",Acorn MPS Ltd
South Holland District Council,http://statistics.data.gov.uk/id/local-authority/32UF,Capital - Strategic Finance & Compliance,Water and Sewerage Charges,25/10/2022,30020190,632.43,Wave
South Holland District Council,http://statistics.data.gov.uk/id/local-authority/32UF,Capital - Strategic Finance & Compliance,Water and Sewerage Charges,25/10/2022,30020192,835.26,Wave
South Holland District Council,http://statistics.data.gov.uk/id/local-authority/32UF,Capital - Strategic Finance & Compliance,Water and Sewerage Charges,25/10/2022,30021465,724.84,Wave
South Holland District Council,http://statistics.data.gov.uk/id/local-authority/32UF,Capital - Strategic Finance & Compliance,Works to Buildings (Main Contractor),20/10/2022,30020386,"1,900.00","""personal information redacted"""
South Holland District Council,http://statistics.data.gov.uk/id/local-authority/32UF,Capital - Strategic Finance & Compliance,Works to Buildings (Main Contractor),20/10/2022,30021210,"9,029.11",JT Ward Joinery Limited
South Holland District Council,http://statistics.data.gov.uk/id/local-authority/32UF,Capital - Strategic Finance & Compliance,Works to Buildings (Main Contractor),20/10/2022,30021356,"26,201.97","""personal information redacted"""
South Holland District Council,http://statistics.data.gov.uk/id/local-authority/32UF,Democratic Services - Democratic,Internet Broadband Payments,11/10/2022,30019340,104.94,Multidata
South Holland District Council,http://statistics.data.gov.uk/id/local-authority/32UF,Democratic Services - Democratic,Internet Broadband Payments,11/10/2022,30019341,104.94,Multidata
South Holland District Council,http://statistics.data.gov.uk/id/local-authority/32UF,Democratic Services - Democratic,Other Miscellaneous Expenses,25/10/2022,30021024,600,Tyrrell Contractors Ltd
South Holland District Council,http://statistics.data.gov.uk/id/local-authority/32UF,Democratic Services - Democratic,Other Miscellaneous Expenses,11/10/2022,30021026,"2,305.00",Moulton Jubilee Committee
South Holland District Council,http://statistics.data.gov.uk/id/local-authority/32UF,Democratic Services - Democratic,Other Miscellaneous Expenses,18/10/2022,30021513,"1,624.26",Spalding Amateur Boxing Club
South Holland District Council,http://statistics.data.gov.uk/id/local-authority/32UF,Democratic Services - Democratic,Other Miscellaneous Expenses,18/10/2022,30021517,"2,766.00",David Ogilvie Engineering Ltd
South Holland District Council,http://statistics.data.gov.uk/id/local-authority/32UF,Democratic Services - Democratic,Other Miscellaneous Expenses,01/11/2022,30022040,800,Spalding Mencap Society
South Holland District Council,http://statistics.data.gov.uk/id/local-authority/32UF,Democratic Services - Democratic,Other Miscellaneous Expenses,01/11/2022,30022042,600,Tulip Events Management
South Holland District Council,http://statistics.data.gov.uk/id/local-authority/32UF,Democratic Services - Democratic,Other Miscellaneous Expenses,01/11/2022,30022043,"1,000.00",Long Sutton Mens Shed
South Holland District Council,http://statistics.data.gov.uk/id/local-authority/32UF,Democratic Services - Democratic,Other Miscellaneous Expenses,01/11/2022,30022126,"1,200.00",Gosberton Parish Council
South Holland District Council,http://statistics.data.gov.uk/id/local-authority/32UF,Democratic Services - Democratic,Other Miscellaneous Expenses,01/11/2022,30022212,"1,000.00",Lincolnshire County Council County Fund
South Holland District Council,http://statistics.data.gov.uk/id/local-authority/32UF,Democratic Services - Democratic,Postages,11/10/2022,30020748,747.5,Royal Mail Group Ltd
South Holland District Council,http://statistics.data.gov.uk/id/local-authority/32UF,Democratic Services - Democratic,Telephones,11/10/2022,30019340,45,Multidata
South Holland District Council,http://statistics.data.gov.uk/id/local-authority/32UF,Democratic Services - Democratic,Telephones,11/10/2022,30019341,45,Multidata
South Holland District Council,http://statistics.data.gov.uk/id/local-authority/32UF,Democratic Services - Legal,Legal Fees,18/10/2022,30021019,"2,467.70",Lincolnshire County Council
South Holland District Council,http://statistics.data.gov.uk/id/local-authority/32UF,Democratic Services - Legal,Legal Fees,18/10/2022,30021222,"4,564.88",Lincolnshire County Council
South Holland District Council,http://statistics.data.gov.uk/id/local-authority/32UF,Democratic Services - Legal,Legal Fees,01/11/2022,30021828,"5,044.76",Lincolnshire County Council
South Holland District Council,http://statistics.data.gov.uk/id/local-authority/32UF,Democratic Services - Legal,Legal Fees Non-Routine,18/10/2022,30020959,"2,000.00",Landmark Chambers
South Holland District Council,http://statistics.data.gov.uk/id/local-authority/32UF,Democratic Services - Legal,Legal Fees Non-Routine,25/10/2022,30021635,"2,808.00",Howes Percival
South Holland District Council,http://statistics.data.gov.uk/id/local-authority/32UF,Democratic Services - Legal,Legal Fees Non-Routine,25/10/2022,30021829,"1,610.00",Womble Bond Dickinson UK LLP
South Holland District Council,http://statistics.data.gov.uk/id/local-authority/32UF,Economic Development,Grants and Contributions to Outside Bodies - No Service Received,04/10/2022,30020783,"24,999.00",Castlet Ltd
South Holland District Council,http://statistics.data.gov.uk/id/local-authority/32UF,Economic Development,Grants and Contributions to Outside Bodies - No Service Received,04/10/2022,30020784,"20,000.00",JCS Fish Ltd
South Holland District Council,http://statistics.data.gov.uk/id/local-authority/32UF,Economic Development,Grants and Contributions to Outside Bodies - No Service Received,04/10/2022,30020789,"4,832.50",Resolution Television Ltd
South Holland District Council,http://statistics.data.gov.uk/id/local-authority/32UF,Economic Development,Grants and Contributions to Outside Bodies - No Service Received,04/10/2022,30020793,"9,645.50",GB Kitchens Ltd
South Holland District Council,http://statistics.data.gov.uk/id/local-authority/32UF,Economic Development,Grants and Contributions to Outside Bodies - No Service Received,04/10/2022,30020862,"9,675.00",IMPS (UK) Ltd
South Holland District Council,http://statistics.data.gov.uk/id/local-authority/32UF,Economic Development,Grants and Contributions to Outside Bodies - No Service Received,06/10/2022,30020928,"6,738.75",Ferry Ales Brewery Ltd
South Holland District Council,http://statistics.data.gov.uk/id/local-authority/32UF,Economic Development,Grants and Contributions to Outside Bodies - No Service Received,13/10/2022,30021365,"13,489.00",Knights Custom Conversions Ltd
South Holland District Council,http://statistics.data.gov.uk/id/local-authority/32UF,Economic Development,Grants and Contributions to Outside Bodies - No Service Received,13/10/2022,30021366,"6,978.58",Corridans Ltd
South Holland District Council,http://statistics.data.gov.uk/id/local-authority/32UF,Economic Development,Grants and Contributions to Outside Bodies - No Service Received,18/10/2022,30021523,"4,985.80",BenWeld Ltd
South Holland District Council,http://statistics.data.gov.uk/id/local-authority/32UF,Economic Development,Grants and Contributions to Outside Bodies - No Service Received,25/10/2022,30021848,"8,620.00",ALS Landscaping Ltd
South Holland District Council,http://statistics.data.gov.uk/id/local-authority/32UF,Economic Development,Grants and Contributions to Outside Bodies - No Service Received,25/10/2022,30021849,"1,557.00",Brooksby Projects Ltd
South Holland District Council,http://statistics.data.gov.uk/id/local-authority/32UF,Economic Development,Professional and Contractors Fees,04/10/2022,30020426,"7,406.44",Reed Talent Solutions Ltd T/A Consultancy +
South Holland District Council,http://statistics.data.gov.uk/id/local-authority/32UF,Economic Development,Professional and Contractors Fees,11/10/2022,30020883,"3,160.08",Reed Talent Solutions Ltd T/A Consultancy +
South Holland District Council,http://statistics.data.gov.uk/id/local-authority/32UF,Economic Development,Professional and Contractors Fees,06/10/2022,30020992,"4,860.00",Max Associates Holdings Ltd
South Holland District Council,http://statistics.data.gov.uk/id/local-authority/32UF,Economic Development,Professional and Contractors Fees,06/10/2022,30020993,"15,475.50",Max Associates Holdings Ltd
South Holland District Council,http://statistics.data.gov.uk/id/local-authority/32UF,Economic Development,Professional and Contractors Fees,06/10/2022,30020994,"1,719.50",Max Associates Holdings Ltd
South Holland District Council,http://statistics.data.gov.uk/id/local-authority/32UF,Economic Development,Professional and Contractors Fees,18/10/2022,30021429,"4,000.00",Lincolnshire County Council
South Holland District Council,http://statistics.data.gov.uk/id/local-authority/32UF,Environmental Services,Agency Staff,04/10/2022,30019942,539.83,Capital Outsourcing Group Food
South Holland District Council,http://statistics.data.gov.uk/id/local-authority/32UF,Environmental Services,Agency Staff,04/10/2022,30020404,539.83,Capital Outsourcing Group Food
South Holland District Council,http://statistics.data.gov.uk/id/local-authority/32UF,Environmental Services,Agency Staff,06/10/2022,30020465,"1,033.50",Questech Recruitment Limited
South Holland District Council,http://statistics.data.gov.uk/id/local-authority/32UF,Environmental Services,Agency Staff,04/10/2022,30020906,873.08,Workchain
South Holland District Council,http://statistics.data.gov.uk/id/local-authority/32UF,Environmental Services,Agency Staff,06/10/2022,30020932,449.03,Blue Arrow Ltd
South Holland District Council,http://statistics.data.gov.uk/id/local-authority/32UF,Environmental Services,Agency Staff,06/10/2022,30020933,"1,540.09",Encore Personnel Services Ltd
South Holland District Council,http://statistics.data.gov.uk/id/local-authority/32UF,Environmental Services,Agency Staff,25/10/2022,30020938,"2,446.67",Quality Service Recruitment Ltd
South Holland District Council,http://statistics.data.gov.uk/id/local-authority/32UF,Environmental Services,Agency Staff,18/10/2022,30021007,826.8,Questech Recruitment Limited
South Holland District Council,http://statistics.data.gov.uk/id/local-authority/32UF,Environmental Services,Agency Staff,11/10/2022,30021034,"3,495.02",Integrity Plus Ltd
South Holland District Council,http://statistics.data.gov.uk/id/local-authority/32UF,Environmental Services,Agency Staff,11/10/2022,30021037,"3,879.02",Integrity Plus Ltd
South Holland District Council,http://statistics.data.gov.uk/id/local-authority/32UF,Environmental Services,Agency Staff,11/10/2022,30021040,"1,181.00",Workchain
South Holland District Council,http://statistics.data.gov.uk/id/local-authority/32UF,Environmental Services,Agency Staff,11/10/2022,30021197,"2,472.63",NJW Services
South Holland District Council,http://statistics.data.gov.uk/id/local-authority/32UF,Environmental Services,Agency Staff,13/10/2022,30021220,539.83,Capital Outsourcing Group Food
South Holland District Council,http://statistics.data.gov.uk/id/local-authority/32UF,Environmental Services,Agency Staff,13/10/2022,30021233,"3,040.36",Integrity Plus Ltd
South Holland District Council,http://statistics.data.gov.uk/id/local-authority/32UF,Environmental Services,Agency Staff,13/10/2022,30021320,594.27,The Best Connection Group Ltd
South Holland District Council,http://statistics.data.gov.uk/id/local-authority/32UF,Environmental Services,Agency Staff,18/10/2022,30021476,"1,271.85",Workchain
South Holland District Council,http://statistics.data.gov.uk/id/local-authority/32UF,Environmental Services,Agency Staff,18/10/2022,30021489,811.41,The Best Connection Group Ltd
South Holland District Council,http://statistics.data.gov.uk/id/local-authority/32UF,Environmental Services,Agency Staff,03/11/2022,30021503,"1,033.50",Questech Recruitment Limited
South Holland District Council,http://statistics.data.gov.uk/id/local-authority/32UF,Environmental Services,Agency Staff,27/10/2022,30021530,992.16,Questech Recruitment Limited
South Holland District Council,http://statistics.data.gov.uk/id/local-authority/32UF,Environmental Services,Agency Staff,01/11/2022,30021544,"1,991.04",Quality Service Recruitment Ltd
South Holland District Council,http://statistics.data.gov.uk/id/local-authority/32UF,Environmental Services,Agency Staff,18/10/2022,30021545,"1,280.24",Workchain
South Holland District Council,http://statistics.data.gov.uk/id/local-authority/32UF,Environmental Services,Agency Staff,18/10/2022,30021546,592,Steves Garden and Household Services
South Holland District Council,http://statistics.data.gov.uk/id/local-authority/32UF,Environmental Services,Agency Staff,20/10/2022,30021559,"2,481.34",Integrity Plus Ltd
South Holland District Council,http://statistics.data.gov.uk/id/local-authority/32UF,Environmental Services,Agency Staff,18/10/2022,30021611,"1,884.18",Quality Service Recruitment Ltd
South Holland District Council,http://statistics.data.gov.uk/id/local-authority/32UF,Environmental Services,Agency Staff,25/10/2022,30021750,"2,861.38",Integrity Plus Ltd
South Holland District Council,http://statistics.data.gov.uk/id/local-authority/32UF,Environmental Services,Agency Staff,20/10/2022,30021758,592,Steves Garden and Household Services
South Holland District Council,http://statistics.data.gov.uk/id/local-authority/32UF,Environmental Services,Agency Staff,25/10/2022,30021855,"1,036.78",Workchain
South Holland District Council,http://statistics.data.gov.uk/id/local-authority/32UF,Environmental Services,Agency Staff,10/11/2022,30021856,"1,033.50",Questech Recruitment Limited
South Holland District Council,http://statistics.data.gov.uk/id/local-authority/32UF,Environmental Services,Agency Staff,15/11/2022,30021862,"1,283.29",Quality Service Recruitment Ltd
South Holland District Council,http://statistics.data.gov.uk/id/local-authority/32UF,Environmental Services,Agency Staff,27/10/2022,30021931,649.13,The Best Connection Group Ltd
South Holland District Council,http://statistics.data.gov.uk/id/local-authority/32UF,Environmental Services,Agency Staff,01/11/2022,30021984,"4,442.74",Integrity Plus Ltd
South Holland District Council,http://statistics.data.gov.uk/id/local-authority/32UF,Environmental Services,Agency Staff,27/10/2022,30021987,749.25,Quality Service Recruitment Ltd
South Holland District Council,http://statistics.data.gov.uk/id/local-authority/32UF,Environmental Services,Agency Staff,27/10/2022,30022011,"1,749.53",Quality Service Recruitment Ltd
South Holland District Council,http://statistics.data.gov.uk/id/local-authority/32UF,Environmental Services,Clothing Uniforms and Laundry,11/10/2022,30020479,580.8,Worksafe Direct UK Limited
South Holland District Council,http://statistics.data.gov.uk/id/local-authority/32UF,Environmental Services,Clothing Uniforms and Laundry,13/10/2022,30020852,527.2,SMI Group
South Holland District Council,http://statistics.data.gov.uk/id/local-authority/32UF,Environmental Services,Clothing Uniforms and Laundry,15/11/2022,30021941,878.36,SMI Group
South Holland District Council,http://statistics.data.gov.uk/id/local-authority/32UF,Environmental Services,Commercial Vehicle Lease Payments (Less than 12 months),20/10/2022,30021766,748,Go Plant Fleet Services
South Holland District Council,http://statistics.data.gov.uk/id/local-authority/32UF,Environmental Services,Fuel and Oil,13/10/2022,30020744,"1,425.00",Chemodex Limited
South Holland District Council,http://statistics.data.gov.uk/id/local-authority/32UF,Environmental Services,Fuel and Oil,06/10/2022,30020934,"10,422.58",C H Jones Ltd
South Holland District Council,http://statistics.data.gov.uk/id/local-authority/32UF,Environmental Services,Fuel and Oil,18/10/2022,30021380,"2,089.20",WCF Chandlers
South Holland District Council,http://statistics.data.gov.uk/id/local-authority/32UF,Environmental Services,Fuel and Oil,18/10/2022,30021435,"8,940.14",C H Jones Ltd
South Holland District Council,http://statistics.data.gov.uk/id/local-authority/32UF,Environmental Services,Fuel and Oil,27/10/2022,30021903,"9,683.64",C H Jones Ltd
South Holland District Council,http://statistics.data.gov.uk/id/local-authority/32UF,Environmental Services,Fuel and Oil,27/10/2022,30021947,"9,871.93",C H Jones Ltd
South Holland District Council,http://statistics.data.gov.uk/id/local-authority/32UF,Environmental Services,Furniture and Equipment,27/10/2022,30021974,587.5,E and S Forklifts Lincs Ltd
South Holland District Council,http://statistics.data.gov.uk/id/local-authority/32UF,Environmental Services,Furniture and Equipment,01/11/2022,30022246,"1,791.90",Westons Garden Machinery Ltd
South Holland District Council,http://statistics.data.gov.uk/id/local-authority/32UF,Environmental Services,Furniture and Equipment,01/11/2022,30022247,"3,300.00",Westons Garden Machinery Ltd
South Holland District Council,http://statistics.data.gov.uk/id/local-authority/32UF,Environmental Services,Grounds Maintenance Contract (External),04/10/2022,30020905,"2,900.00",Greenscape Tree Safe Ltd
South Holland District Council,http://statistics.data.gov.uk/id/local-authority/32UF,Environmental Services,Income Collected on Behalf of External Organisations,13/10/2022,30021405,"5,164.64",Broadgate Builders T/A Westlode Car Park
South Holland District Council,http://statistics.data.gov.uk/id/local-authority/32UF,Environmental Services,Materials and Consumables,04/10/2022,30020837,706.2,JR DALY LTD t/a AUTOSMART
South Holland District Council,http://statistics.data.gov.uk/id/local-authority/32UF,Environmental Services,Materials and Consumables,20/10/2022,30020972,"6,374.73",Berry BPI Refuse
South Holland District Council,http://statistics.data.gov.uk/id/local-authority/32UF,Environmental Services,Materials and Consumables,20/10/2022,30020973,"16,967.41",Berry BPI Refuse
South Holland District Council,http://statistics.data.gov.uk/id/local-authority/32UF,Environmental Services,Other Employee Expenses,11/10/2022,30021002,"1,318.20",The HR Branch
South Holland District Council,http://statistics.data.gov.uk/id/local-authority/32UF,Environmental Services,Other Miscellaneous Expenses,01/11/2022,30021272,950,Bartec Municipal Technologies Ltd
South Holland District Council,http://statistics.data.gov.uk/id/local-authority/32UF,Environmental Services,Other Miscellaneous Expenses,20/10/2022,30021721,750,W R Kerfoot and Partners
South Holland District Council,http://statistics.data.gov.uk/id/local-authority/32UF,Environmental Services,PCN Income,13/10/2022,30021404,"3,216.10",Broadgate Builders T/A Westlode Car Park
South Holland District Council,http://statistics.data.gov.uk/id/local-authority/32UF,Environmental Services,Professional and Contractors Fees,04/10/2022,30020907,"1,558.96",Lincolnshire County Council
South Holland District Council,http://statistics.data.gov.uk/id/local-authority/32UF,Environmental Services,Professional and Contractors Fees,04/10/2022,30020908,"1,035.90",Lincolnshire County Council
South Holland District Council,http://statistics.data.gov.uk/id/local-authority/32UF,Environmental Services,Professional and Contractors Fees,25/10/2022,30021310,"1,054.67",Kings Armoured Security Services Ltd
South Holland District Council,http://statistics.data.gov.uk/id/local-authority/32UF,Environmental Services,Professional and Contractors Fees,13/10/2022,30021371,750,Weaar
South Holland District Council,http://statistics.data.gov.uk/id/local-authority/32UF,Environmental Services,Professional and Contractors Fees,13/10/2022,30021372,"1,850.00",Weaar
South Holland District Council,http://statistics.data.gov.uk/id/local-authority/32UF,Environmental Services,Professional and Contractors Fees,13/10/2022,30021373,"1,750.00",Weaar
South Holland District Council,http://statistics.data.gov.uk/id/local-authority/32UF,Environmental Services,Professional and Contractors Fees,03/11/2022,30021505,"1,150.00",Weaar
South Holland District Council,http://statistics.data.gov.uk/id/local-authority/32UF,Environmental Services,Professional and Contractors Fees,03/11/2022,30021515,"1,950.00",Weaar
South Holland District Council,http://statistics.data.gov.uk/id/local-authority/32UF,Environmental Services,Professional and Contractors Fees,03/11/2022,30021529,"1,950.00",Weaar
South Holland District Council,http://statistics.data.gov.uk/id/local-authority/32UF,Environmental Services,Professional and Contractors Fees,25/10/2022,30021550,"1,129.20",Lincolnshire County Council
South Holland District Council,http://statistics.data.gov.uk/id/local-authority/32UF,Environmental Services,Professional and Contractors Fees,10/11/2022,30021692,550,Weaar
South Holland District Council,http://statistics.data.gov.uk/id/local-authority/32UF,Environmental Services,Professional and Contractors Fees,10/11/2022,30021696,"1,250.00",Weaar
South Holland District Council,http://statistics.data.gov.uk/id/local-authority/32UF,Environmental Services,Professional and Contractors Fees,10/11/2022,30021698,950,Weaar
South Holland District Council,http://statistics.data.gov.uk/id/local-authority/32UF,Environmental Services,Professional and Contractors Fees,10/11/2022,30021700,"1,950.00",Weaar
South Holland District Council,http://statistics.data.gov.uk/id/local-authority/32UF,Environmental Services,Professional and Contractors Fees,10/11/2022,30021702,550,Weaar
South Holland District Council,http://statistics.data.gov.uk/id/local-authority/32UF,Environmental Services,Professional and Contractors Fees,17/11/2022,30021944,"1,950.00",Weaar
South Holland District Council,http://statistics.data.gov.uk/id/local-authority/32UF,Environmental Services,Rent Payments,01/11/2022,30022132,950,Spalding Rectory Feoffees
South Holland District Council,http://statistics.data.gov.uk/id/local-authority/32UF,Environmental Services,Staff Training Expenses (Non-Payroll),18/10/2022,30020978,685,Pristine Condition International Ltd
South Holland District Council,http://statistics.data.gov.uk/id/local-authority/32UF,Environmental Services,Transport Insurance Excess,20/10/2022,30021772,"1,449.86",Kents of Spalding Ltd
South Holland District Council,http://statistics.data.gov.uk/id/local-authority/32UF,Environmental Services,Tyres,04/10/2022,30020858,817,Vaculug Technologies Ltd
South Holland District Council,http://statistics.data.gov.uk/id/local-authority/32UF,Environmental Services,Tyres,04/10/2022,30020859,"5,410.95",Vaculug Technologies Ltd
South Holland District Council,http://statistics.data.gov.uk/id/local-authority/32UF,Environmental Services,Tyres,25/10/2022,30021771,944.2,Vaculug Technologies Ltd
South Holland District Council,http://statistics.data.gov.uk/id/local-authority/32UF,Environmental Services,Workshop Consumables,27/10/2022,30022104,"1,555.00",Pre Sure Limited
South Holland District Council,http://statistics.data.gov.uk/id/local-authority/32UF,Environmental Services,Workshop Parts,18/10/2022,30019467,483.4,Ford and Slater DAF
South Holland District Council,http://statistics.data.gov.uk/id/local-authority/32UF,Environmental Services,Workshop Parts,06/10/2022,30020414,489.17,Ford and Slater DAF
South Holland District Council,http://statistics.data.gov.uk/id/local-authority/32UF,Environmental Services,Workshop Parts,04/10/2022,30020489,454.56,Russells Kirbymoorside Ltd
South Holland District Council,http://statistics.data.gov.uk/id/local-authority/32UF,Environmental Services,Workshop Parts,04/10/2022,30020490,991.84,Russells Kirbymoorside Ltd
South Holland District Council,http://statistics.data.gov.uk/id/local-authority/32UF,Environmental Services,Workshop Parts,04/10/2022,30020886,463.08,Ford and Slater DAF
South Holland District Council,http://statistics.data.gov.uk/id/local-authority/32UF,Environmental Services,Workshop Parts,13/10/2022,30020975,579.5,Gemco Equipment Ltd
South Holland District Council,http://statistics.data.gov.uk/id/local-authority/32UF,Environmental Services,Workshop Parts,25/10/2022,30021200,889.22,Fleet Factors Ltd
South Holland District Council,http://statistics.data.gov.uk/id/local-authority/32UF,Environmental Services,Workshop Parts,25/10/2022,30021610,"1,316.00",Gemco Equipment Ltd
South Holland District Council,http://statistics.data.gov.uk/id/local-authority/32UF,Environmental Services,Workshop Parts,01/11/2022,30021612,525.71,A Culpin & Son Ltd
South Holland District Council,http://statistics.data.gov.uk/id/local-authority/32UF,Environmental Services,Workshop Parts,20/10/2022,30021768,623.54,S and M Springs
South Holland District Council,http://statistics.data.gov.uk/id/local-authority/32UF,Environmental Services,Workshop Parts,25/10/2022,30021859,"2,650.40",Taylors of Spalding Ltd
South Holland District Council,http://statistics.data.gov.uk/id/local-authority/32UF,Environmental Services,Workshop Parts,15/11/2022,30022105,629.14,Fleet Factors Ltd
South Holland District Council,http://statistics.data.gov.uk/id/local-authority/32UF,Finance,Agency Staff,11/10/2022,30020930,469,Pay Stream My Max 3 Limited
South Holland District Council,http://statistics.data.gov.uk/id/local-authority/32UF,Finance,Agency Staff,11/10/2022,30021349,603,Pay Stream My Max 3 Limited
South Holland District Council,http://statistics.data.gov.uk/id/local-authority/32UF,Finance,Agency Staff,20/10/2022,30021678,703.5,Pay Stream My Max 3 Limited
South Holland District Council,http://statistics.data.gov.uk/id/local-authority/32UF,Finance,Professional Fees,13/10/2022,30021274,"8,662.66",Lincolnshire County Council
South Holland District Council,http://statistics.data.gov.uk/id/local-authority/32UF,Finance,Public Sector Partnership Services,06/10/2022,30020186,"253,689.08",Public Sector Partnership Services Ltd
South Holland District Council,http://statistics.data.gov.uk/id/local-authority/32UF,Finance,Public Sector Partnership Services,20/10/2022,30021464,"253,689.08",Public Sector Partnership Services Ltd
South Holland District Council,http://statistics.data.gov.uk/id/local-authority/32UF,Finance,Purchase of Hardware,06/10/2022,30020346,"32,932.12",Softcat Plc
South Holland District Council,http://statistics.data.gov.uk/id/local-authority/32UF,Finance,Purchase of Hardware,06/10/2022,30020920,"57,238.30",Public Sector Partnership Services Ltd
South Holland District Council,http://statistics.data.gov.uk/id/local-authority/32UF,Finance,Shared Management,13/10/2022,30021003,"9,205.22",Breckland Council
South Holland District Council,http://statistics.data.gov.uk/id/local-authority/32UF,Head of HR & Organisational Development,Other Income,11/10/2022,30021314,-22.34,Unison
South Holland District Council,http://statistics.data.gov.uk/id/local-authority/32UF,Head of HR & Organisational Development,Other Income,18/10/2022,30021558,20.12,Fideliti Limited
South Holland District Council,http://statistics.data.gov.uk/id/local-authority/32UF,Head of ICT and Digital,Computer Hardware Maintenance,11/10/2022,30019340,311.52,Multidata
South Holland District Council,http://statistics.data.gov.uk/id/local-authority/32UF,Head of ICT and Digital,Computer Hardware Maintenance,11/10/2022,30019341,311.52,Multidata
South Holland District Council,http://statistics.data.gov.uk/id/local-authority/32UF,Head of ICT and Digital,Computer Hardware Maintenance,11/10/2022,30020995,"7,412.04",Lincolnshire County Council
South Holland District Council,http://statistics.data.gov.uk/id/local-authority/32UF,Head of ICT and Digital,Computer Hardware Maintenance,25/10/2022,30021195,838,Onesource It Ltd
South Holland District Council,http://statistics.data.gov.uk/id/local-authority/32UF,Head of ICT and Digital,Computer Hardware Maintenance,01/11/2022,30021270,"1,174.80",Phoenix Software Ltd
South Holland District Council,http://statistics.data.gov.uk/id/local-authority/32UF,Head of ICT and Digital,Computer Hardware Purchase,11/10/2022,30020381,"1,455.30",Vohkus Limited
South Holland District Council,http://statistics.data.gov.uk/id/local-authority/32UF,Head of ICT and Digital,Computer Software Licence Costs,03/11/2022,30021457,"7,500.00",Goss Interactive Ltd
South Holland District Council,http://statistics.data.gov.uk/id/local-authority/32UF,Head of ICT and Digital,Computer Software Licence Costs,03/11/2022,30021458,"3,540.00",Goss Interactive Ltd
South Holland District Council,http://statistics.data.gov.uk/id/local-authority/32UF,Head of ICT and Digital,Computer Software Licence Costs,15/11/2022,30022130,"6,410.81",Civica UK Limited
South Holland District Council,http://statistics.data.gov.uk/id/local-authority/32UF,Head of ICT and Digital,Materials and Consumables,06/10/2022,30020942,639.32,Vohkus Limited
South Holland District Council,http://statistics.data.gov.uk/id/local-authority/32UF,Head of ICT and Digital,Materials and Consumables,01/11/2022,30022116,"1,128.00",Public Sector Partnership Services Ltd
South Holland District Council,http://statistics.data.gov.uk/id/local-authority/32UF,Head of ICT and Digital,Professional and Contractors Fees,11/10/2022,30020896,"2,216.67",Public Sector Partnership Services Ltd
South Holland District Council,http://statistics.data.gov.uk/id/local-authority/32UF,Head of ICT and Digital,Telephones,13/10/2022,30020779,468.75,Vodafone Ltd Corporate
South Holland District Council,http://statistics.data.gov.uk/id/local-authority/32UF,Head of ICT and Digital,Telephones,13/10/2022,30020991,"2,744.90",Vodafone Ltd Corporate
South Holland District Council,http://statistics.data.gov.uk/id/local-authority/32UF,Health & Communities,Furniture and Equipment,25/10/2022,30020868,"1,480.75",Jemcom CCTV Limited
South Holland District Council,http://statistics.data.gov.uk/id/local-authority/32UF,Health & Communities,Other Miscellaneous Expenses,06/10/2022,30020541,736.25,Tears Of Sutton Bridge Ltd
South Holland District Council,http://statistics.data.gov.uk/id/local-authority/32UF,Health & Communities,Other Miscellaneous Expenses,25/10/2022,30020543,736.25,Tears Of Sutton Bridge Ltd
South Holland District Council,http://statistics.data.gov.uk/id/local-authority/32UF,Health & Communities,Other Miscellaneous Expenses,04/10/2022,30020544,"1,068.75",Tears Of Sutton Bridge Ltd
South Holland District Council,http://statistics.data.gov.uk/id/local-authority/32UF,Housing,Grants and Contributions to Outside Bodies - No Service Received,11/10/2022,30020011,620.2,Smart Cabs Spalding
South Holland District Council,http://statistics.data.gov.uk/id/local-authority/32UF,Housing,Professional and Contractors Fees,11/10/2022,30020912,"1,524.00",Capsticks Solicitors LLP
South Holland District Council,http://statistics.data.gov.uk/id/local-authority/32UF,Housing,Professional and Contractors Fees,25/10/2022,30021027,"1,520.00",Capsticks Solicitors LLP
South Holland District Council,http://statistics.data.gov.uk/id/local-authority/32UF,Leisure & Culture Communities,Computer Hardware Maintenance,25/10/2022,30021410,"1,271.58",Spektrix Ltd
South Holland District Council,http://statistics.data.gov.uk/id/local-authority/32UF,Leisure & Culture Communities,Electricity,06/10/2022,30020661,"3,295.47",Total Energies
South Holland District Council,http://statistics.data.gov.uk/id/local-authority/32UF,Leisure & Culture Communities,Electricity,06/10/2022,30020803,"3,331.07",Total Energies
South Holland District Council,http://statistics.data.gov.uk/id/local-authority/32UF,Leisure & Culture Communities,Electricity,01/11/2022,30022179,"2,713.70",Total Energies
South Holland District Council,http://statistics.data.gov.uk/id/local-authority/32UF,Leisure & Culture Communities,Furniture and Equipment,27/10/2022,30022085,618.42,Chisletts (Spalding) Ltd
South Holland District Council,http://statistics.data.gov.uk/id/local-authority/32UF,Leisure & Culture Communities,Grants and Contributions to Outside Bodies - No Service Received,18/10/2022,30021504,"1,284.00",Live and Local Ltd
South Holland District Council,http://statistics.data.gov.uk/id/local-authority/32UF,Leisure & Culture Communities,Grounds Maintenance Contract (External),18/10/2022,30021414,"10,500.00",R J Flower Contracting
South Holland District Council,http://statistics.data.gov.uk/id/local-authority/32UF,Leisure & Culture Communities,Other Income,06/10/2022,30020863,"-1,887.23",Live Promotions Events Ltd
South Holland District Council,http://statistics.data.gov.uk/id/local-authority/32UF,Leisure & Culture Communities,Other Income,18/10/2022,30021518,"-2,110.00",Live Promotions Events Ltd
South Holland District Council,http://statistics.data.gov.uk/id/local-authority/32UF,Leisure & Culture Communities,Other Income,01/11/2022,30021691,"-3,309.00",Act II
South Holland District Council,http://statistics.data.gov.uk/id/local-authority/32UF,Leisure & Culture Communities,Other Income,01/11/2022,30021884,"-1,907.50",Live Promotions Events Ltd
South Holland District Council,http://statistics.data.gov.uk/id/local-authority/32UF,Leisure & Culture Communities,Other Miscellaneous Expenses,18/10/2022,30021485,"1,509.00",Raye Linge Market Stalls Limited
South Holland District Council,http://statistics.data.gov.uk/id/local-authority/32UF,Leisure & Culture Communities,Other Miscellaneous Expenses,18/10/2022,30021492,750,Supreme Carriages
South Holland District Council,http://statistics.data.gov.uk/id/local-authority/32UF,Leisure & Culture Communities,Other Miscellaneous Expenses,18/10/2022,30021497,"1,200.00",Popcorn Media
South Holland District Council,http://statistics.data.gov.uk/id/local-authority/32UF,Leisure & Culture Communities,Other Miscellaneous Expenses,18/10/2022,30021499,"1,450.00",Popcorn Media
South Holland District Council,http://statistics.data.gov.uk/id/local-authority/32UF,Leisure & Culture Communities,Other Miscellaneous Expenses,18/10/2022,30021506,"3,043.10",Dick Ropa Entertainments
South Holland District Council,http://statistics.data.gov.uk/id/local-authority/32UF,Leisure & Culture Communities,Other Miscellaneous Expenses,18/10/2022,30021507,478,Dick Ropa Entertainments
South Holland District Council,http://statistics.data.gov.uk/id/local-authority/32UF,Leisure & Culture Communities,Other Miscellaneous Expenses,18/10/2022,30021540,520,Rubys and Diamonds
South Holland District Council,http://statistics.data.gov.uk/id/local-authority/32UF,Leisure & Culture Communities,Other Miscellaneous Expenses,25/10/2022,30021551,"2,587.00",South Lincs Security Limited
South Holland District Council,http://statistics.data.gov.uk/id/local-authority/32UF,Leisure & Culture Communities,Payments to Bodies in Respect of Income Collected,06/10/2022,30020863,"6,227.50",Live Promotions Events Ltd
South Holland District Council,http://statistics.data.gov.uk/id/local-authority/32UF,Leisure & Culture Communities,Payments to Bodies in Respect of Income Collected,18/10/2022,30021340,519.5,Spalding Water Taxi Co. Ltd
South Holland District Council,http://statistics.data.gov.uk/id/local-authority/32UF,Leisure & Culture Communities,Payments to Bodies in Respect of Income Collected,18/10/2022,30021518,"7,400.00",Live Promotions Events Ltd
South Holland District Council,http://statistics.data.gov.uk/id/local-authority/32UF,Leisure & Culture Communities,Payments to Bodies in Respect of Income Collected,01/11/2022,30021691,"4,854.00",Act II
South Holland District Council,http://statistics.data.gov.uk/id/local-authority/32UF,Leisure & Culture Communities,Payments to Bodies in Respect of Income Collected,01/11/2022,30021884,"5,850.00",Live Promotions Events Ltd
South Holland District Council,http://statistics.data.gov.uk/id/local-authority/32UF,Leisure & Culture Communities,Performers and Entertainers Fees,18/10/2022,30020947,700,Polka Dot Pantomimes
South Holland District Council,http://statistics.data.gov.uk/id/local-authority/32UF,Leisure & Culture Communities,Performers and Entertainers Fees,11/10/2022,30021275,"3,500.00",RTR productions Ltd
South Holland District Council,http://statistics.data.gov.uk/id/local-authority/32UF,Leisure & Culture Communities,Performers and Entertainers Fees,03/11/2022,30021773,"4,001.99",Individual Entertainment Ltd
South Holland District Council,http://statistics.data.gov.uk/id/local-authority/32UF,Leisure & Culture Communities,Performers and Entertainers Fees,25/10/2022,30021834,"3,000.00",University of Lincoln Transported
South Holland District Council,http://statistics.data.gov.uk/id/local-authority/32UF,Leisure & Culture Communities,Professional and Contractors Fees,01/11/2022,30020010,"1,085.00",GBSG Ltd
South Holland District Council,http://statistics.data.gov.uk/id/local-authority/32UF,Leisure & Culture Communities,Professional and Contractors Fees,25/10/2022,30021389,840,Agenda Cleaning Services
South Holland District Council,http://statistics.data.gov.uk/id/local-authority/32UF,Leisure & Culture Communities,Purchase of Goods for Resale,06/10/2022,30020985,"4,314.00",Act II
South Holland District Council,http://statistics.data.gov.uk/id/local-authority/32UF,Planning,Agency - Vacant Post Cover,01/11/2022,30021259,"4,095.00",Vivid Resourcing
South Holland District Council,http://statistics.data.gov.uk/id/local-authority/32UF,Planning,Agency - Vacant Post Cover,08/11/2022,30021712,"3,016.50",Vivid Resourcing
South Holland District Council,http://statistics.data.gov.uk/id/local-authority/32UF,Planning,Agency - Vacant Post Cover,15/11/2022,30021770,"1,462.50",Vivid Resourcing
South Holland District Council,http://statistics.data.gov.uk/id/local-authority/32UF,Planning,Planning Application Fees,04/10/2022,30020185,924,The Friends of Chain Bridge Forge
South Holland District Council,http://statistics.data.gov.uk/id/local-authority/32UF,Planning,Professional and Contractors Fees,20/10/2022,30021711,"3,500.00",Mark Simmonds Planning Services Limited
South Holland District Council,http://statistics.data.gov.uk/id/local-authority/32UF,Planning,Professional and Contractors Fees,15/11/2022,30022101,"2,000.00",CP Viability Ltd
South Holland District Council,http://statistics.data.gov.uk/id/local-authority/32UF,Planning,Professional and Contractors Fees,15/11/2022,30022102,"2,000.00",CP Viability Ltd
South Holland District Council,http://statistics.data.gov.uk/id/local-authority/32UF,Public Protection,Fuel and Oil,06/10/2022,30020934,46.44,C H Jones Ltd
South Holland District Council,http://statistics.data.gov.uk/id/local-authority/32UF,Public Protection,Fuel and Oil,18/10/2022,30021435,39.87,C H Jones Ltd
South Holland District Council,http://statistics.data.gov.uk/id/local-authority/32UF,Public Protection,Fuel and Oil,27/10/2022,30021903,39.88,C H Jones Ltd
South Holland District Council,http://statistics.data.gov.uk/id/local-authority/32UF,Public Protection,Furniture and Equipment,03/11/2022,30021501,"1,230.79",Vip-System Ltd
South Holland District Council,http://statistics.data.gov.uk/id/local-authority/32UF,Public Protection,Other Local Authorities,11/10/2022,30020851,"1,163.00",Fenland District Council
South Holland District Council,http://statistics.data.gov.uk/id/local-authority/32UF,Public Protection,Professional and Contractors Fees,13/10/2022,30020857,"1,392.68",The Oyster Partnership Ltd
South Holland District Council,http://statistics.data.gov.uk/id/local-authority/32UF,Public Protection,Professional and Contractors Fees,01/11/2022,30021236,"1,392.68",The Oyster Partnership Ltd
South Holland District Council,http://statistics.data.gov.uk/id/local-authority/32UF,Public Protection,Professional and Contractors Fees,08/11/2022,30021475,"1,392.68",The Oyster Partnership Ltd
South Holland District Council,http://statistics.data.gov.uk/id/local-authority/32UF,Public Protection,Professional and Contractors Fees,15/11/2022,30021776,"1,392.68",The Oyster Partnership Ltd
South Holland District Council,http://statistics.data.gov.uk/id/local-authority/32UF,Public Protection,Professional and Contractors Fees,25/10/2022,30021833,"2,645.00",Lincolnshire County Council
South Holland District Council,http://statistics.data.gov.uk/id/local-authority/32UF,Public Protection,Professional and Contractors Fees,01/11/2022,30022044,"1,392.68",The Oyster Partnership Ltd
South Holland District Council,http://statistics.data.gov.uk/id/local-authority/32UF,Public Protection,Public Courses and Workshops,25/10/2022,30021230,495,Highfield Awarding Body For Compliance
South Holland District Council,http://statistics.data.gov.uk/id/local-authority/32UF,South Holland Balance Sheet,Un-coded Invoices Suspense Account,01/11/2022,30021208,"1,960.00",Lincolnshire County Council
